{"text_format":"1","workbook":"xlsx","n_sheets":2,"sheets":["Sheet1","Validation"],"not_rendered":{"charts":0,"images":0,"macros":1,"external_links":0,"defined_names":4,"comments":0,"pivot_tables":0},"unopened":[],"bounds":{"document_bytes":16777216,"sheet_cells":100000,"rows_first":2000,"rows_last":500,"rows_between":2000,"halvings":0,"cell_chars":16384,"cell_head_chars":4096},"cells_cut":0,"cells_raw":0,"read":"whole","date_system":"1900"}

{"sheet":"Sheet1","index":0,"n_rows":1222,"n_cols":16,"rows_kept":1222,"cut":false,"hidden":false,"merged":[]}
["Title","First Name","Last Name","Gender","DOB","Address Line 1","Address Line 2","Address Line 3","City","County","Postal Code","Email","Home Phone","Mobile Phone","Date","Postcode Validation"]
[null,null,null,null,null,null,null,null,null,null,null,null,null,null,null,{"$f":"IsUKPostCode(K2)","v":"Not Supplied"}]
[null,null,null,null,null,null,null,null,null,null,null,null,null,null,null,{"$f":"IsUKPostCode(K3)","v":"Not Supplied"}]
[null,null,null,null,null,null,null,null,null,null,null,null,null,null,null,"Not Supplied"]
[null,null,null,null,null,null,null,null,null,null,null,null,null,null,null,"Not Supplied"]
[null,null,null,null,null,null,null,null,null,null,null,null,null,null,null,"Not Supplied"]
[null,null,null,null,null,null,null,null,null,null,null,null,null,null,null,"Not Supplied"]
[null,null,null,null,null,null,null,null,null,null,null,null,null,null,null,"Not Supplied"]
[null,null,null,null,null,null,null,null,null,null,null,null,null,null,null,"Not Supplied"]
[null,null,null,null,null,null,null,null,null,null,null,null,null,null,null,"Not Supplied"]
[null,null,null,null,null,null,null,null,null,null,null,null,null,null,null,"Not Supplied"]
[null,null,null,null,null,null,null,null,null,null,null,null,null,null,null,"Not Supplied"]
[null,null,null,null,null,null,null,null,null,null,null,null,null,null,null,"Not Supplied"]
[null,null,null,null,null,null,null,null,null,null,null,null,null,null,null,"Not Supplied"]
[null,null,null,null,null,null,null,null,null,null,null,null,null,null,null,"Not Supplied"]
[null,null,null,null,null,null,null,null,null,null,null,null,null,null,null,"Not Supplied"]
[null,null,null,null,null,null,null,null,null,null,null,null,null,null,null,"Not Supplied"]
[null,null,null,null,null,null,null,null,null,null,null,null,null,null,null,"Not Supplied"]
[null,null,null,null,null,null,null,null,null,null,null,null,null,null,null,"Not Supplied"]
[null,null,null,null,null,null,null,null,null,null,null,null,null,null,null,"Not Supplied"]
[null,null,null,null,null,null,null,null,null,null,null,null,null,null,null,"Not Supplied"]
[null,null,null,null,null,null,null,null,null,null,null,null,null,null,null,"Not Supplied"]
[null,null,null,null,null,null,null,null,null,null,null,null,null,null,null,"Not Supplied"]
[null,null,null,null,null,null,null,null,null,null,null,null,null,null,null,"Not Supplied"]
[null,null,null,null,null,null,null,null,null,null,null,null,null,null,null,"Not Supplied"]
[null,null,null,null,null,null,null,null,null,null,null,null,null,null,null,"Not Supplied"]
[null,null,null,null,null,null,null,null,null,null,null,null,null,null,null,"Not Supplied"]
[null,null,null,null,null,null,null,null,null,null,null,null,null,null,null,"Not Supplied"]
[null,null,null,null,null,null,null,null,null,null,null,null,null,null,null,"Not Supplied"]
[null,null,null,null,null,null,null,null,null,null,null,null,null,null,null,"Not Supplied"]
[null,null,null,null,null,null,null,null,null,null,null,null,null,null,null,"Not Supplied"]
[null,null,null,null,null,null,null,null,null,null,null,null,null,null,null,"Not Supplied"]
[null,null,null,null,null,null,null,null,null,null,null,null,null,null,null,"Not Supplied"]
[null,null,null,null,null,null,null,null,null,null,null,null,null,null,null,"Not Supplied"]
[null,null,null,null,null,null,null,null,null,null,null,null,null,null,null,"Not Supplied"]
[null,null,null,null,null,null,null,null,null,null,null,null,null,null,null,"Not Supplied"]
[null,null,null,null,null,null,null,null,null,null,null,null,null,null,null,"Not Supplied"]
[null,null,null,null,null,null,null,null,null,null,null,null,null,null,null,"Not Supplied"]
[null,null,null,null,null,null,null,null,null,null,null,null,null,null,null,"Not Supplied"]
[null,null,null,null,null,null,null,null,null,null,null,null,null,null,null,"Not Supplied"]
[null,null,null,null,null,null,null,null,null,null,null,null,null,null,null,"Not Supplied"]
[null,null,null,null,null,null,null,null,null,null,null,null,null,null,null,"Not Supplied"]
[null,null,null,null,null,null,null,null,null,null,null,null,null,null,null,"Not Supplied"]
[null,null,null,null,null,null,null,null,null,null,null,null,null,null,null,"Not Supplied"]
[null,null,null,null,null,null,null,null,null,null,null,null,null,null,null,"Not Supplied"]
[null,null,null,null,null,null,null,null,null,null,null,null,null,null,null,"Not Supplied"]
[null,null,null,null,null,null,null,null,null,null,null,null,null,null,null,"Not Supplied"]
[null,null,null,null,null,null,null,null,null,null,null,null,null,null,null,"Not Supplied"]
[null,null,null,null,null,null,null,null,null,null,null,null,null,null,null,"Not Supplied"]
[null,null,null,null,null,null,null,null,null,null,null,null,null,null,null,"Not Supplied"]
[null,null,null,null,null,null,null,null,null,null,null,null,null,null,null,"Not Supplied"]
[null,null,null,null,null,null,null,null,null,null,null,null,null,null,null,"Not Supplied"]
[null,null,null,null,null,null,null,null,null,null,null,null,null,null,null,"Not Supplied"]
[null,null,null,null,null,null,null,null,null,null,null,null,null,null,null,"Not Supplied"]
[null,null,null,null,null,null,null,null,null,null,null,null,null,null,null,"Not Supplied"]
[null,null,null,null,null,null,null,null,null,null,null,null,null,null,null,"Not Supplied"]
[null,null,null,null,null,null,null,null,null,null,null,null,null,null,null,"Not Supplied"]
[null,null,null,null,null,null,null,null,null,null,null,null,null,null,null,"Not Supplied"]
[null,null,null,null,null,null,null,null,null,null,null,null,null,null,null,"Not Supplied"]
[null,null,null,null,null,null,null,null,null,null,null,null,null,null,null,"Not Supplied"]
[null,null,null,null,null,null,null,null,null,null,null,null,null,null,null,"Not Supplied"]
[null,null,null,null,null,null,null,null,null,null,null,null,null,null,null,"Not Supplied"]
[null,null,null,null,null,null,null,null,null,null,null,null,null,null,null,"Not Supplied"]
[null,null,null,null,null,null,null,null,null,null,null,null,null,null,null,"Not Supplied"]
[null,null,null,null,null,null,null,null,null,null,null,null,null,null,null,"Not Supplied"]
[null,null,null,null,null,null,null,null,null,null,null,null,null,null,null,"Not Supplied"]
[null,null,null,null,null,null,null,null,null,null,null,null,null,null,null,{"$f":"IsUKPostCode(K67)","v":"Not Supplied"}]
[null,null,null,null,null,null,null,null,null,null,null,null,null,null,null,"Not Supplied"]
[null,null,null,null,null,null,null,null,null,null,null,null,null,null,null,"Not Supplied"]
[null,null,null,null,null,null,null,null,null,null,null,null,null,null,null,"Not Supplied"]
[null,null,null,null,null,null,null,null,null,null,null,null,null,null,null,"Not Supplied"]
[null,null,null,null,null,null,null,null,null,null,null,null,null,null,null,"Not Supplied"]
[null,null,null,null,null,null,null,null,null,null,null,null,null,null,null,"Not Supplied"]
[null,null,null,null,null,null,null,null,null,null,null,null,null,null,null,"Not Supplied"]
[null,null,null,null,null,null,null,null,null,null,null,null,null,null,null,"Not Supplied"]
[null,null,null,null,null,null,null,null,null,null,null,null,null,null,null,"Not Supplied"]
[null,null,null,null,null,null,null,null,null,null,null,null,null,null,null,"Not Supplied"]
[null,null,null,null,null,null,null,null,null,null,null,null,null,null,null,"Not Supplied"]
[null,null,null,null,null,null,null,null,null,null,null,null,null,null,null,"Not Supplied"]
[null,null,null,null,null,null,null,null,null,null,null,null,null,null,null,"Not Supplied"]
[null,null,null,null,null,null,null,null,null,null,null,null,null,null,null,"Not Supplied"]
[null,null,null,null,null,null,null,null,null,null,null,null,null,null,null,"Not Supplied"]
[null,null,null,null,null,null,null,null,null,null,null,null,null,null,null,"Not Supplied"]
[null,null,null,null,null,null,null,null,null,null,null,null,null,null,null,"Not Supplied"]
[null,null,null,null,null,null,null,null,null,null,null,null,null,null,null,"Not Supplied"]
[null,null,null,null,null,null,null,null,null,null,null,null,null,null,null,"Not Supplied"]
[null,null,null,null,null,null,null,null,null,null,null,null,null,null,null,"Not Supplied"]
[null,null,null,null,null,null,null,null,null,null,null,null,null,null,null,"Not Supplied"]
[null,null,null,null,null,null,null,null,null,null,null,null,null,null,null,"Not Supplied"]
[null,null,null,null,null,null,null,null,null,null,null,null,null,null,null,"Not Supplied"]
[null,null,null,null,null,null,null,null,null,null,null,null,null,null,null,"Not Supplied"]
[null,null,null,null,null,null,null,null,null,null,null,null,null,null,null,"Not Supplied"]
[null,null,null,null,null,null,null,null,null,null,null,null,null,null,null,"Not Supplied"]
[null,null,null,null,null,null,null,null,null,null,null,null,null,null,null,"Not Supplied"]
[null,null,null,null,null,null,null,null,null,null,null,null,null,null,null,"Not Supplied"]
[null,null,null,null,null,null,null,null,null,null,null,null,null,null,null,"Not Supplied"]
[null,null,null,null,null,null,null,null,null,null,null,null,null,null,null,"Not Supplied"]
[null,null,null,null,null,null,null,null,null,null,null,null,null,null,null,"Not Supplied"]
[null,null,null,null,null,null,null,null,null,null,null,null,null,null,null,"Not Supplied"]
[null,null,null,null,null,null,null,null,null,null,null,null,null,null,null,"Not Supplied"]
[null,null,null,null,null,null,null,null,null,null,null,null,null,null,null,"Not Supplied"]
[null,null,null,null,null,null,null,null,null,null,null,null,null,null,null,"Not Supplied"]
[null,null,null,null,null,null,null,null,null,null,null,null,null,null,null,"Not Supplied"]
[null,null,null,null,null,null,null,null,null,null,null,null,null,null,null,"Not Supplied"]
[null,null,null,null,null,null,null,null,null,null,null,null,null,null,null,"Not Supplied"]
[null,null,null,null,null,null,null,null,null,null,null,null,null,null,null,"Not Supplied"]
[null,null,null,null,null,null,null,null,null,null,null,null,null,null,null,"Not Supplied"]
[null,null,null,null,null,null,null,null,null,null,null,null,null,null,null,"Not Supplied"]
[null,null,null,null,null,null,null,null,null,null,null,null,null,null,null,"Not Supplied"]
[null,null,null,null,null,null,null,null,null,null,null,null,null,null,null,"Not Supplied"]
[null,null,null,null,null,null,null,null,null,null,null,null,null,null,null,"Not Supplied"]
[null,null,null,null,null,null,null,null,null,null,null,null,null,null,null,"Not Supplied"]
[null,null,null,null,null,null,null,null,null,null,null,null,null,null,null,"Not Supplied"]
[null,null,null,null,null,null,null,null,null,null,null,null,null,null,null,"Not Supplied"]
[null,null,null,null,null,null,null,null,null,null,null,null,null,null,null,"Not Supplied"]
[null,null,null,null,null,null,null,null,null,null,null,null,null,null,null,"Not Supplied"]
[null,null,null,null,null,null,null,null,null,null,null,null,null,null,null,"Not Supplied"]
[null,null,null,null,null,null,null,null,null,null,null,null,null,null,null,"Not Supplied"]
[null,null,null,null,null,null,null,null,null,null,null,null,null,null,null,"Not Supplied"]
[null,null,null,null,null,null,null,null,null,null,null,null,null,null,null,"Not Supplied"]
[null,null,null,null,null,null,null,null,null,null,null,null,null,null,null,"Not Supplied"]
[null,null,null,null,null,null,null,null,null,null,null,null,null,null,null,"Not Supplied"]
[null,null,null,null,null,null,null,null,null,null,null,null,null,null,null,"Not Supplied"]
[null,null,null,null,null,null,null,null,null,null,null,null,null,null,null,"Not Supplied"]
[null,null,null,null,null,null,null,null,null,null,null,null,null,null,null,"Not Supplied"]
[null,null,null,null,null,null,null,null,null,null,null,null,null,null,null,"Not Supplied"]
[null,null,null,null,null,null,null,null,null,null,null,null,null,null,null,"Not Supplied"]
[null,null,null,null,null,null,null,null,null,null,null,null,null,null,null,"Not Supplied"]
[null,null,null,null,null,null,null,null,null,null,null,null,null,null,null,"Not Supplied"]
[null,null,null,null,null,null,null,null,null,null,null,null,null,null,null,"Not Supplied"]
[null,null,null,null,null,null,null,null,null,null,null,null,null,null,null,{"$f":"IsUKPostCode(K131)","v":"Not Supplied"}]
[null,null,null,null,null,null,null,null,null,null,null,null,null,null,null,"Not Supplied"]
[null,null,null,null,null,null,null,null,null,null,null,null,null,null,null,"Not Supplied"]
[null,null,null,null,null,null,null,null,null,null,null,null,null,null,null,"Not Supplied"]
[null,null,null,null,null,null,null,null,null,null,null,null,null,null,null,"Not Supplied"]
[null,null,null,null,null,null,null,null,null,null,null,null,null,null,null,"Not Supplied"]
[null,null,null,null,null,null,null,null,null,null,null,null,null,null,null,"Not Supplied"]
[null,null,null,null,null,null,null,null,null,null,null,null,null,null,null,"Not Supplied"]
[null,null,null,null,null,null,null,null,null,null,null,null,null,null,null,"Not Supplied"]
[null,null,null,null,null,null,null,null,null,null,null,null,null,null,null,"Not Supplied"]
[null,null,null,null,null,null,null,null,null,null,null,null,null,null,null,"Not Supplied"]
[null,null,null,null,null,null,null,null,null,null,null,null,null,null,null,"Not Supplied"]
[null,null,null,null,null,null,null,null,null,null,null,null,null,null,null,"Not Supplied"]
[null,null,null,null,null,null,null,null,null,null,null,null,null,null,null,"Not Supplied"]
[null,null,null,null,null,null,null,null,null,null,null,null,null,null,null,"Not Supplied"]
[null,null,null,null,null,null,null,null,null,null,null,null,null,null,null,"Not Supplied"]
[null,null,null,null,null,null,null,null,null,null,null,null,null,null,null,"Not Supplied"]
[null,null,null,null,null,null,null,null,null,null,null,null,null,null,null,"Not Supplied"]
[null,null,null,null,null,null,null,null,null,null,null,null,null,null,null,"Not Supplied"]
[null,null,null,null,null,null,null,null,null,null,null,null,null,null,null,"Not Supplied"]
[null,null,null,null,null,null,null,null,null,null,null,null,null,null,null,"Not Supplied"]
[null,null,null,null,null,null,null,null,null,null,null,null,null,null,null,"Not Supplied"]
[null,null,null,null,null,null,null,null,null,null,null,null,null,null,null,"Not Supplied"]
[null,null,null,null,null,null,null,null,null,null,null,null,null,null,null,"Not Supplied"]
[null,null,null,null,null,null,null,null,null,null,null,null,null,null,null,"Not Supplied"]
[null,null,null,null,null,null,null,null,null,null,null,null,null,null,null,"Not Supplied"]
[null,null,null,null,null,null,null,null,null,null,null,null,null,null,null,"Not Supplied"]
[null,null,null,null,null,null,null,null,null,null,null,null,null,null,null,"Not Supplied"]
[null,null,null,null,null,null,null,null,null,null,null,null,null,null,null,"Not Supplied"]
[null,null,null,null,null,null,null,null,null,null,null,null,null,null,null,"Not Supplied"]
[null,null,null,null,null,null,null,null,null,null,null,null,null,null,null,"Not Supplied"]
[null,null,null,null,null,null,null,null,null,null,null,null,null,null,null,"Not Supplied"]
[null,null,null,null,null,null,null,null,null,null,null,null,null,null,null,"Not Supplied"]
[null,null,null,null,null,null,null,null,null,null,null,null,null,null,null,"Not Supplied"]
[null,null,null,null,null,null,null,null,null,null,null,null,null,null,null,"Not Supplied"]
[null,null,null,null,null,null,null,null,null,null,null,null,null,null,null,"Not Supplied"]
[null,null,null,null,null,null,null,null,null,null,null,null,null,null,null,"Not Supplied"]
[null,null,null,null,null,null,null,null,null,null,null,null,null,null,null,"Not Supplied"]
[null,null,null,null,null,null,null,null,null,null,null,null,null,null,null,"Not Supplied"]
[null,null,null,null,null,null,null,null,null,null,null,null,null,null,null,"Not Supplied"]
[null,null,null,null,null,null,null,null,null,null,null,null,null,null,null,"Not Supplied"]
[null,null,null,null,null,null,null,null,null,null,null,null,null,null,null,"Not Supplied"]
[null,null,null,null,null,null,null,null,null,null,null,null,null,null,null,"Not Supplied"]
[null,null,null,null,null,null,null,null,null,null,null,null,null,null,null,"Not Supplied"]
[null,null,null,null,null,null,null,null,null,null,null,null,null,null,null,"Not Supplied"]
[null,null,null,null,null,null,null,null,null,null,null,null,null,null,null,"Not Supplied"]
[null,null,null,null,null,null,null,null,null,null,null,null,null,null,null,"Not Supplied"]
[null,null,null,null,null,null,null,null,null,null,null,null,null,null,null,"Not Supplied"]
[null,null,null,null,null,null,null,null,null,null,null,null,null,null,null,"Not Supplied"]
[null,null,null,null,null,null,null,null,null,null,null,null,null,null,null,"Not Supplied"]
[null,null,null,null,null,null,null,null,null,null,null,null,null,null,null,"Not Supplied"]
[null,null,null,null,null,null,null,null,null,null,null,null,null,null,null,"Not Supplied"]
[null,null,null,null,null,null,null,null,null,null,null,null,null,null,null,"Not Supplied"]
[null,null,null,null,null,null,null,null,null,null,null,null,null,null,null,"Not Supplied"]
[null,null,null,null,null,null,null,null,null,null,null,null,null,null,null,"Not Supplied"]
[null,null,null,null,null,null,null,null,null,null,null,null,null,null,null,"Not Supplied"]
[null,null,null,null,null,null,null,null,null,null,null,null,null,null,null,"Not Supplied"]
[null,null,null,null,null,null,null,null,null,null,null,null,null,null,null,"Not Supplied"]
[null,null,null,null,null,null,null,null,null,null,null,null,null,null,null,"Not Supplied"]
[null,null,null,null,null,null,null,null,null,null,null,null,null,null,null,"Not Supplied"]
[null,null,null,null,null,null,null,null,null,null,null,null,null,null,null,"Not Supplied"]
[null,null,null,null,null,null,null,null,null,null,null,null,null,null,null,"Not Supplied"]
[null,null,null,null,null,null,null,null,null,null,null,null,null,null,null,"Not Supplied"]
[null,null,null,null,null,null,null,null,null,null,null,null,null,null,null,"Not Supplied"]
[null,null,null,null,null,null,null,null,null,null,null,null,null,null,null,{"$f":"IsUKPostCode(K195)","v":"Not Supplied"}]
[null,null,null,null,null,null,null,null,null,null,null,null,null,null,null,"Not Supplied"]
[null,null,null,null,null,null,null,null,null,null,null,null,null,null,null,"Not Supplied"]
[null,null,null,null,null,null,null,null,null,null,null,null,null,null,null,"Not Supplied"]
[null,null,null,null,null,null,null,null,null,null,null,null,null,null,null,"Not Supplied"]
[null,null,null,null,null,null,null,null,null,null,null,null,null,null,null,"Not Supplied"]
[null,null,null,null,null,null,null,null,null,null,null,null,null,null,null,"Not Supplied"]
[null,null,null,null,null,null,null,null,null,null,null,null,null,null,null,"Not Supplied"]
[null,null,null,null,null,null,null,null,null,null,null,null,null,null,null,"Not Supplied"]
[null,null,null,null,null,null,null,null,null,null,null,null,null,null,null,"Not Supplied"]
[null,null,null,null,null,null,null,null,null,null,null,null,null,null,null,"Not Supplied"]
[null,null,null,null,null,null,null,null,null,null,null,null,null,null,null,"Not Supplied"]
[null,null,null,null,null,null,null,null,null,null,null,null,null,null,null,"Not Supplied"]
[null,null,null,null,null,null,null,null,null,null,null,null,null,null,null,"Not Supplied"]
[null,null,null,null,null,null,null,null,null,null,null,null,null,null,null,"Not Supplied"]
[null,null,null,null,null,null,null,null,null,null,null,null,null,null,null,"Not Supplied"]
[null,null,null,null,null,null,null,null,null,null,null,null,null,null,null,"Not Supplied"]
[null,null,null,null,null,null,null,null,null,null,null,null,null,null,null,"Not Supplied"]
[null,null,null,null,null,null,null,null,null,null,null,null,null,null,null,"Not Supplied"]
[null,null,null,null,null,null,null,null,null,null,null,null,null,null,null,"Not Supplied"]
[null,null,null,null,null,null,null,null,null,null,null,null,null,null,null,"Not Supplied"]
[null,null,null,null,null,null,null,null,null,null,null,null,null,null,null,"Not Supplied"]
[null,null,null,null,null,null,null,null,null,null,null,null,null,null,null,"Not Supplied"]
[null,null,null,null,null,null,null,null,null,null,null,null,null,null,null,"Not Supplied"]
[null,null,null,null,null,null,null,null,null,null,null,null,null,null,null,"Not Supplied"]
[null,null,null,null,null,null,null,null,null,null,null,null,null,null,null,"Not Supplied"]
[null,null,null,null,null,null,null,null,null,null,null,null,null,null,null,"Not Supplied"]
[null,null,null,null,null,null,null,null,null,null,null,null,null,null,null,"Not Supplied"]
[null,null,null,null,null,null,null,null,null,null,null,null,null,null,null,"Not Supplied"]
[null,null,null,null,null,null,null,null,null,null,null,null,null,null,null,"Not Supplied"]
[null,null,null,null,null,null,null,null,null,null,null,null,null,null,null,"Not Supplied"]
[null,null,null,null,null,null,null,null,null,null,null,null,null,null,null,"Not Supplied"]
[null,null,null,null,null,null,null,null,null,null,null,null,null,null,null,"Not Supplied"]
[null,null,null,null,null,null,null,null,null,null,null,null,null,null,null,"Not Supplied"]
[null,null,null,null,null,null,null,null,null,null,null,null,null,null,null,"Not Supplied"]
[null,null,null,null,null,null,null,null,null,null,null,null,null,null,null,"Not Supplied"]
[null,null,null,null,null,null,null,null,null,null,null,null,null,null,null,"Not Supplied"]
[null,null,null,null,null,null,null,null,null,null,null,null,null,null,null,"Not Supplied"]
[null,null,null,null,null,null,null,null,null,null,null,null,null,null,null,"Not Supplied"]
[null,null,null,null,null,null,null,null,null,null,null,null,null,null,null,"Not Supplied"]
[null,null,null,null,null,null,null,null,null,null,null,null,null,null,null,"Not Supplied"]
[null,null,null,null,null,null,null,null,null,null,null,null,null,null,null,"Not Supplied"]
[null,null,null,null,null,null,null,null,null,null,null,null,null,null,null,"Not Supplied"]
[null,null,null,null,null,null,null,null,null,null,null,null,null,null,null,"Not Supplied"]
[null,null,null,null,null,null,null,null,null,null,null,null,null,null,null,"Not Supplied"]
[null,null,null,null,null,null,null,null,null,null,null,null,null,null,null,"Not Supplied"]
[null,null,null,null,null,null,null,null,null,null,null,null,null,null,null,"Not Supplied"]
[null,null,null,null,null,null,null,null,null,null,null,null,null,null,null,"Not Supplied"]
[null,null,null,null,null,null,null,null,null,null,null,null,null,null,null,"Not Supplied"]
[null,null,null,null,null,null,null,null,null,null,null,null,null,null,null,"Not Supplied"]
[null,null,null,null,null,null,null,null,null,null,null,null,null,null,null,"Not Supplied"]
[null,null,null,null,null,null,null,null,null,null,null,null,null,null,null,"Not Supplied"]
[null,null,null,null,null,null,null,null,null,null,null,null,null,null,null,"Not Supplied"]
[null,null,null,null,null,null,null,null,null,null,null,null,null,null,null,"Not Supplied"]
[null,null,null,null,null,null,null,null,null,null,null,null,null,null,null,"Not Supplied"]
[null,null,null,null,null,null,null,null,null,null,null,null,null,null,null,"Not Supplied"]
[null,null,null,null,null,null,null,null,null,null,null,null,null,null,null,"Not Supplied"]
[null,null,null,null,null,null,null,null,null,null,null,null,null,null,null,"Not Supplied"]
[null,null,null,null,null,null,null,null,null,null,null,null,null,null,null,"Not Supplied"]
[null,null,null,null,null,null,null,null,null,null,null,null,null,null,null,"Not Supplied"]
[null,null,null,null,null,null,null,null,null,null,null,null,null,null,null,"Not Supplied"]
[null,null,null,null,null,null,null,null,null,null,null,null,null,null,null,"Not Supplied"]
[null,null,null,null,null,null,null,null,null,null,null,null,null,null,null,"Not Supplied"]
[null,null,null,null,null,null,null,null,null,null,null,null,null,null,null,"Not Supplied"]
[null,null,null,null,null,null,null,null,null,null,null,null,null,null,null,{"$f":"IsUKPostCode(K259)","v":"Not Supplied"}]
[null,null,null,null,null,null,null,null,null,null,null,null,null,null,null,"Not Supplied"]
[null,null,null,null,null,null,null,null,null,null,null,null,null,null,null,"Not Supplied"]
[null,null,null,null,null,null,null,null,null,null,null,null,null,null,null,"Not Supplied"]
[null,null,null,null,null,null,null,null,null,null,null,null,null,null,null,"Not Supplied"]
[null,null,null,null,null,null,null,null,null,null,null,null,null,null,null,"Not Supplied"]
[null,null,null,null,null,null,null,null,null,null,null,null,null,null,null,"Not Supplied"]
[null,null,null,null,null,null,null,null,null,null,null,null,null,null,null,"Not Supplied"]
[null,null,null,null,null,null,null,null,null,null,null,null,null,null,null,"Not Supplied"]
[null,null,null,null,null,null,null,null,null,null,null,null,null,null,null,"Not Supplied"]
[null,null,null,null,null,null,null,null,null,null,null,null,null,null,null,"Not Supplied"]
[null,null,null,null,null,null,null,null,null,null,null,null,null,null,null,"Not Supplied"]
[null,null,null,null,null,null,null,null,null,null,null,null,null,null,null,"Not Supplied"]
[null,null,null,null,null,null,null,null,null,null,null,null,null,null,null,"Not Supplied"]
[null,null,null,null,null,null,null,null,null,null,null,null,null,null,null,"Not Supplied"]
[null,null,null,null,null,null,null,null,null,null,null,null,null,null,null,"Not Supplied"]
[null,null,null,null,null,null,null,null,null,null,null,null,null,null,null,"Not Supplied"]
[null,null,null,null,null,null,null,null,null,null,null,null,null,null,null,"Not Supplied"]
[null,null,null,null,null,null,null,null,null,null,null,null,null,null,null,"Not Supplied"]
[null,null,null,null,null,null,null,null,null,null,null,null,null,null,null,"Not Supplied"]
[null,null,null,null,null,null,null,null,null,null,null,null,null,null,null,"Not Supplied"]
[null,null,null,null,null,null,null,null,null,null,null,null,null,null,null,"Not Supplied"]
[null,null,null,null,null,null,null,null,null,null,null,null,null,null,null,"Not Supplied"]
[null,null,null,null,null,null,null,null,null,null,null,null,null,null,null,"Not Supplied"]
[null,null,null,null,null,null,null,null,null,null,null,null,null,null,null,"Not Supplied"]
[null,null,null,null,null,null,null,null,null,null,null,null,null,null,null,"Not Supplied"]
[null,null,null,null,null,null,null,null,null,null,null,null,null,null,null,"Not Supplied"]
[null,null,null,null,null,null,null,null,null,null,null,null,null,null,null,"Not Supplied"]
[null,null,null,null,null,null,null,null,null,null,null,null,null,null,null,"Not Supplied"]
[null,null,null,null,null,null,null,null,null,null,null,null,null,null,null,"Not Supplied"]
[null,null,null,null,null,null,null,null,null,null,null,null,null,null,null,"Not Supplied"]
[null,null,null,null,null,null,null,null,null,null,null,null,null,null,null,"Not Supplied"]
[null,null,null,null,null,null,null,null,null,null,null,null,null,null,null,"Not Supplied"]
[null,null,null,null,null,null,null,null,null,null,null,null,null,null,null,"Not Supplied"]
[null,null,null,null,null,null,null,null,null,null,null,null,null,null,null,"Not Supplied"]
[null,null,null,null,null,null,null,null,null,null,null,null,null,null,null,"Not Supplied"]
[null,null,null,null,null,null,null,null,null,null,null,null,null,null,null,"Not Supplied"]
[null,null,null,null,null,null,null,null,null,null,null,null,null,null,null,"Not Supplied"]
[null,null,null,null,null,null,null,null,null,null,null,null,null,null,null,"Not Supplied"]
[null,null,null,null,null,null,null,null,null,null,null,null,null,null,null,"Not Supplied"]
[null,null,null,null,null,null,null,null,null,null,null,null,null,null,null,"Not Supplied"]
[null,null,null,null,null,null,null,null,null,null,null,null,null,null,null,"Not Supplied"]
[null,null,null,null,null,null,null,null,null,null,null,null,null,null,null,"Not Supplied"]
[null,null,null,null,null,null,null,null,null,null,null,null,null,null,null,"Not Supplied"]
[null,null,null,null,null,null,null,null,null,null,null,null,null,null,null,"Not Supplied"]
[null,null,null,null,null,null,null,null,null,null,null,null,null,null,null,"Not Supplied"]
[null,null,null,null,null,null,null,null,null,null,null,null,null,null,null,"Not Supplied"]
[null,null,null,null,null,null,null,null,null,null,null,null,null,null,null,"Not Supplied"]
[null,null,null,null,null,null,null,null,null,null,null,null,null,null,null,"Not Supplied"]
[null,null,null,null,null,null,null,null,null,null,null,null,null,null,null,"Not Supplied"]
[null,null,null,null,null,null,null,null,null,null,null,null,null,null,null,"Not Supplied"]
[null,null,null,null,null,null,null,null,null,null,null,null,null,null,null,"Not Supplied"]
[null,null,null,null,null,null,null,null,null,null,null,null,null,null,null,"Not Supplied"]
[null,null,null,null,null,null,null,null,null,null,null,null,null,null,null,"Not Supplied"]
[null,null,null,null,null,null,null,null,null,null,null,null,null,null,null,"Not Supplied"]
[null,null,null,null,null,null,null,null,null,null,null,null,null,null,null,"Not Supplied"]
[null,null,null,null,null,null,null,null,null,null,null,null,null,null,null,"Not Supplied"]
[null,null,null,null,null,null,null,null,null,null,null,null,null,null,null,"Not Supplied"]
[null,null,null,null,null,null,null,null,null,null,null,null,null,null,null,"Not Supplied"]
[null,null,null,null,null,null,null,null,null,null,null,null,null,null,null,"Not Supplied"]
[null,null,null,null,null,null,null,null,null,null,null,null,null,null,null,"Not Supplied"]
[null,null,null,null,null,null,null,null,null,null,null,null,null,null,null,"Not Supplied"]
[null,null,null,null,null,null,null,null,null,null,null,null,null,null,null,"Not Supplied"]
[null,null,null,null,null,null,null,null,null,null,null,null,null,null,null,"Not Supplied"]
[null,null,null,null,null,null,null,null,null,null,null,null,null,null,null,{"$f":"IsUKPostCode(K323)","v":"Not Supplied"}]
[null,null,null,null,null,null,null,null,null,null,null,null,null,null,null,"Not Supplied"]
[null,null,null,null,null,null,null,null,null,null,null,null,null,null,null,"Not Supplied"]
[null,null,null,null,null,null,null,null,null,null,null,null,null,null,null,"Not Supplied"]
[null,null,null,null,null,null,null,null,null,null,null,null,null,null,null,"Not Supplied"]
[null,null,null,null,null,null,null,null,null,null,null,null,null,null,null,"Not Supplied"]
[null,null,null,null,null,null,null,null,null,null,null,null,null,null,null,"Not Supplied"]
[null,null,null,null,null,null,null,null,null,null,null,null,null,null,null,"Not Supplied"]
[null,null,null,null,null,null,null,null,null,null,null,null,null,null,null,"Not Supplied"]
[null,null,null,null,null,null,null,null,null,null,null,null,null,null,null,"Not Supplied"]
[null,null,null,null,null,null,null,null,null,null,null,null,null,null,null,"Not Supplied"]
[null,null,null,null,null,null,null,null,null,null,null,null,null,null,null,"Not Supplied"]
[null,null,null,null,null,null,null,null,null,null,null,null,null,null,null,"Not Supplied"]
[null,null,null,null,null,null,null,null,null,null,null,null,null,null,null,"Not Supplied"]
[null,null,null,null,null,null,null,null,null,null,null,null,null,null,null,"Not Supplied"]
[null,null,null,null,null,null,null,null,null,null,null,null,null,null,null,"Not Supplied"]
[null,null,null,null,null,null,null,null,null,null,null,null,null,null,null,"Not Supplied"]
[null,null,null,null,null,null,null,null,null,null,null,null,null,null,null,"Not Supplied"]
[null,null,null,null,null,null,null,null,null,null,null,null,null,null,null,"Not Supplied"]
[null,null,null,null,null,null,null,null,null,null,null,null,null,null,null,"Not Supplied"]
[null,null,null,null,null,null,null,null,null,null,null,null,null,null,null,"Not Supplied"]
[null,null,null,null,null,null,null,null,null,null,null,null,null,null,null,"Not Supplied"]
[null,null,null,null,null,null,null,null,null,null,null,null,null,null,null,"Not Supplied"]
[null,null,null,null,null,null,null,null,null,null,null,null,null,null,null,"Not Supplied"]
[null,null,null,null,null,null,null,null,null,null,null,null,null,null,null,"Not Supplied"]
[null,null,null,null,null,null,null,null,null,null,null,null,null,null,null,"Not Supplied"]
[null,null,null,null,null,null,null,null,null,null,null,null,null,null,null,"Not Supplied"]
[null,null,null,null,null,null,null,null,null,null,null,null,null,null,null,"Not Supplied"]
[null,null,null,null,null,null,null,null,null,null,null,null,null,null,null,"Not Supplied"]
[null,null,null,null,null,null,null,null,null,null,null,null,null,null,null,"Not Supplied"]
[null,null,null,null,null,null,null,null,null,null,null,null,null,null,null,"Not Supplied"]
[null,null,null,null,null,null,null,null,null,null,null,null,null,null,null,"Not Supplied"]
[null,null,null,null,null,null,null,null,null,null,null,null,null,null,null,"Not Supplied"]
[null,null,null,null,null,null,null,null,null,null,null,null,null,null,null,"Not Supplied"]
[null,null,null,null,null,null,null,null,null,null,null,null,null,null,null,"Not Supplied"]
[null,null,null,null,null,null,null,null,null,null,null,null,null,null,null,"Not Supplied"]
[null,null,null,null,null,null,null,null,null,null,null,null,null,null,null,"Not Supplied"]
[null,null,null,null,null,null,null,null,null,null,null,null,null,null,null,"Not Supplied"]
[null,null,null,null,null,null,null,null,null,null,null,null,null,null,null,"Not Supplied"]
[null,null,null,null,null,null,null,null,null,null,null,null,null,null,null,"Not Supplied"]
[null,null,null,null,null,null,null,null,null,null,null,null,null,null,null,"Not Supplied"]
[null,null,null,null,null,null,null,null,null,null,null,null,null,null,null,"Not Supplied"]
[null,null,null,null,null,null,null,null,null,null,null,null,null,null,null,"Not Supplied"]
[null,null,null,null,null,null,null,null,null,null,null,null,null,null,null,"Not Supplied"]
[null,null,null,null,null,null,null,null,null,null,null,null,null,null,null,"Not Supplied"]
[null,null,null,null,null,null,null,null,null,null,null,null,null,null,null,"Not Supplied"]
[null,null,null,null,null,null,null,null,null,null,null,null,null,null,null,"Not Supplied"]
[null,null,null,null,null,null,null,null,null,null,null,null,null,null,null,"Not Supplied"]
[null,null,null,null,null,null,null,null,null,null,null,null,null,null,null,"Not Supplied"]
[null,null,null,null,null,null,null,null,null,null,null,null,null,null,null,"Not Supplied"]
[null,null,null,null,null,null,null,null,null,null,null,null,null,null,null,"Not Supplied"]
[null,null,null,null,null,null,null,null,null,null,null,null,null,null,null,"Not Supplied"]
[null,null,null,null,null,null,null,null,null,null,null,null,null,null,null,"Not Supplied"]
[null,null,null,null,null,null,null,null,null,null,null,null,null,null,null,"Not Supplied"]
[null,null,null,null,null,null,null,null,null,null,null,null,null,null,null,"Not Supplied"]
[null,null,null,null,null,null,null,null,null,null,null,null,null,null,null,"Not Supplied"]
[null,null,null,null,null,null,null,null,null,null,null,null,null,null,null,"Not Supplied"]
[null,null,null,null,null,null,null,null,null,null,null,null,null,null,null,"Not Supplied"]
[null,null,null,null,null,null,null,null,null,null,null,null,null,null,null,"Not Supplied"]
[null,null,null,null,null,null,null,null,null,null,null,null,null,null,null,"Not Supplied"]
[null,null,null,null,null,null,null,null,null,null,null,null,null,null,null,"Not Supplied"]
[null,null,null,null,null,null,null,null,null,null,null,null,null,null,null,"Not Supplied"]
[null,null,null,null,null,null,null,null,null,null,null,null,null,null,null,"Not Supplied"]
[null,null,null,null,null,null,null,null,null,null,null,null,null,null,null,"Not Supplied"]
[null,null,null,null,null,null,null,null,null,null,null,null,null,null,null,{"$f":"IsUKPostCode(K387)","v":"Not Supplied"}]
[null,null,null,null,null,null,null,null,null,null,null,null,null,null,null,"Not Supplied"]
[null,null,null,null,null,null,null,null,null,null,null,null,null,null,null,"Not Supplied"]
[null,null,null,null,null,null,null,null,null,null,null,null,null,null,null,"Not Supplied"]
[null,null,null,null,null,null,null,null,null,null,null,null,null,null,null,"Not Supplied"]
[null,null,null,null,null,null,null,null,null,null,null,null,null,null,null,"Not Supplied"]
[null,null,null,null,null,null,null,null,null,null,null,null,null,null,null,"Not Supplied"]
[null,null,null,null,null,null,null,null,null,null,null,null,null,null,null,"Not Supplied"]
[null,null,null,null,null,null,null,null,null,null,null,null,null,null,null,"Not Supplied"]
[null,null,null,null,null,null,null,null,null,null,null,null,null,null,null,"Not Supplied"]
[null,null,null,null,null,null,null,null,null,null,null,null,null,null,null,"Not Supplied"]
[null,null,null,null,null,null,null,null,null,null,null,null,null,null,null,"Not Supplied"]
[null,null,null,null,null,null,null,null,null,null,null,null,null,null,null,"Not Supplied"]
[null,null,null,null,null,null,null,null,null,null,null,null,null,null,null,"Not Supplied"]
[null,null,null,null,null,null,null,null,null,null,null,null,null,null,null,"Not Supplied"]
[null,null,null,null,null,null,null,null,null,null,null,null,null,null,null,"Not Supplied"]
[null,null,null,null,null,null,null,null,null,null,null,null,null,null,null,"Not Supplied"]
[null,null,null,null,null,null,null,null,null,null,null,null,null,null,null,"Not Supplied"]
[null,null,null,null,null,null,null,null,null,null,null,null,null,null,null,"Not Supplied"]
[null,null,null,null,null,null,null,null,null,null,null,null,null,null,null,"Not Supplied"]
[null,null,null,null,null,null,null,null,null,null,null,null,null,null,null,"Not Supplied"]
[null,null,null,null,null,null,null,null,null,null,null,null,null,null,null,"Not Supplied"]
[null,null,null,null,null,null,null,null,null,null,null,null,null,null,null,"Not Supplied"]
[null,null,null,null,null,null,null,null,null,null,null,null,null,null,null,"Not Supplied"]
[null,null,null,null,null,null,null,null,null,null,null,null,null,null,null,"Not Supplied"]
[null,null,null,null,null,null,null,null,null,null,null,null,null,null,null,"Not Supplied"]
[null,null,null,null,null,null,null,null,null,null,null,null,null,null,null,"Not Supplied"]
[null,null,null,null,null,null,null,null,null,null,null,null,null,null,null,"Not Supplied"]
[null,null,null,null,null,null,null,null,null,null,null,null,null,null,null,"Not Supplied"]
[null,null,null,null,null,null,null,null,null,null,null,null,null,null,null,"Not Supplied"]
[null,null,null,null,null,null,null,null,null,null,null,null,null,null,null,"Not Supplied"]
[null,null,null,null,null,null,null,null,null,null,null,null,null,null,null,"Not Supplied"]
[null,null,null,null,null,null,null,null,null,null,null,null,null,null,null,"Not Supplied"]
[null,null,null,null,null,null,null,null,null,null,null,null,null,null,null,"Not Supplied"]
[null,null,null,null,null,null,null,null,null,null,null,null,null,null,null,"Not Supplied"]
[null,null,null,null,null,null,null,null,null,null,null,null,null,null,null,"Not Supplied"]
[null,null,null,null,null,null,null,null,null,null,null,null,null,null,null,"Not Supplied"]
[null,null,null,null,null,null,null,null,null,null,null,null,null,null,null,"Not Supplied"]
[null,null,null,null,null,null,null,null,null,null,null,null,null,null,null,"Not Supplied"]
[null,null,null,null,null,null,null,null,null,null,null,null,null,null,null,"Not Supplied"]
[null,null,null,null,null,null,null,null,null,null,null,null,null,null,null,"Not Supplied"]
[null,null,null,null,null,null,null,null,null,null,null,null,null,null,null,"Not Supplied"]
[null,null,null,null,null,null,null,null,null,null,null,null,null,null,null,"Not Supplied"]
[null,null,null,null,null,null,null,null,null,null,null,null,null,null,null,"Not Supplied"]
[null,null,null,null,null,null,null,null,null,null,null,null,null,null,null,"Not Supplied"]
[null,null,null,null,null,null,null,null,null,null,null,null,null,null,null,"Not Supplied"]
[null,null,null,null,null,null,null,null,null,null,null,null,null,null,null,"Not Supplied"]
[null,null,null,null,null,null,null,null,null,null,null,null,null,null,null,"Not Supplied"]
[null,null,null,null,null,null,null,null,null,null,null,null,null,null,null,"Not Supplied"]
[null,null,null,null,null,null,null,null,null,null,null,null,null,null,null,"Not Supplied"]
[null,null,null,null,null,null,null,null,null,null,null,null,null,null,null,"Not Supplied"]
[null,null,null,null,null,null,null,null,null,null,null,null,null,null,null,"Not Supplied"]
[null,null,null,null,null,null,null,null,null,null,null,null,null,null,null,"Not Supplied"]
[null,null,null,null,null,null,null,null,null,null,null,null,null,null,null,"Not Supplied"]
[null,null,null,null,null,null,null,null,null,null,null,null,null,null,null,"Not Supplied"]
[null,null,null,null,null,null,null,null,null,null,null,null,null,null,null,"Not Supplied"]
[null,null,null,null,null,null,null,null,null,null,null,null,null,null,null,"Not Supplied"]
[null,null,null,null,null,null,null,null,null,null,null,null,null,null,null,"Not Supplied"]
[null,null,null,null,null,null,null,null,null,null,null,null,null,null,null,"Not Supplied"]
[null,null,null,null,null,null,null,null,null,null,null,null,null,null,null,"Not Supplied"]
[null,null,null,null,null,null,null,null,null,null,null,null,null,null,null,"Not Supplied"]
[null,null,null,null,null,null,null,null,null,null,null,null,null,null,null,"Not Supplied"]
[null,null,null,null,null,null,null,null,null,null,null,null,null,null,null,"Not Supplied"]
[null,null,null,null,null,null,null,null,null,null,null,null,null,null,null,"Not Supplied"]
[null,null,null,null,null,null,null,null,null,null,null,null,null,null,null,{"$f":"IsUKPostCode(K451)","v":"Not Supplied"}]
[null,null,null,null,null,null,null,null,null,null,null,null,null,null,null,"Not Supplied"]
[null,null,null,null,null,null,null,null,null,null,null,null,null,null,null,"Not Supplied"]
[null,null,null,null,null,null,null,null,null,null,null,null,null,null,null,"Not Supplied"]
[null,null,null,null,null,null,null,null,null,null,null,null,null,null,null,"Not Supplied"]
[null,null,null,null,null,null,null,null,null,null,null,null,null,null,null,"Not Supplied"]
[null,null,null,null,null,null,null,null,null,null,null,null,null,null,null,"Not Supplied"]
[null,null,null,null,null,null,null,null,null,null,null,null,null,null,null,"Not Supplied"]
[null,null,null,null,null,null,null,null,null,null,null,null,null,null,null,"Not Supplied"]
[null,null,null,null,null,null,null,null,null,null,null,null,null,null,null,"Not Supplied"]
[null,null,null,null,null,null,null,null,null,null,null,null,null,null,null,"Not Supplied"]
[null,null,null,null,null,null,null,null,null,null,null,null,null,null,null,"Not Supplied"]
[null,null,null,null,null,null,null,null,null,null,null,null,null,null,null,"Not Supplied"]
[null,null,null,null,null,null,null,null,null,null,null,null,null,null,null,"Not Supplied"]
[null,null,null,null,null,null,null,null,null,null,null,null,null,null,null,"Not Supplied"]
[null,null,null,null,null,null,null,null,null,null,null,null,null,null,null,"Not Supplied"]
[null,null,null,null,null,null,null,null,null,null,null,null,null,null,null,"Not Supplied"]
[null,null,null,null,null,null,null,null,null,null,null,null,null,null,null,"Not Supplied"]
[null,null,null,null,null,null,null,null,null,null,null,null,null,null,null,"Not Supplied"]
[null,null,null,null,null,null,null,null,null,null,null,null,null,null,null,"Not Supplied"]
[null,null,null,null,null,null,null,null,null,null,null,null,null,null,null,"Not Supplied"]
[null,null,null,null,null,null,null,null,null,null,null,null,null,null,null,"Not Supplied"]
[null,null,null,null,null,null,null,null,null,null,null,null,null,null,null,"Not Supplied"]
[null,null,null,null,null,null,null,null,null,null,null,null,null,null,null,"Not Supplied"]
[null,null,null,null,null,null,null,null,null,null,null,null,null,null,null,"Not Supplied"]
[null,null,null,null,null,null,null,null,null,null,null,null,null,null,null,"Not Supplied"]
[null,null,null,null,null,null,null,null,null,null,null,null,null,null,null,"Not Supplied"]
[null,null,null,null,null,null,null,null,null,null,null,null,null,null,null,"Not Supplied"]
[null,null,null,null,null,null,null,null,null,null,null,null,null,null,null,"Not Supplied"]
[null,null,null,null,null,null,null,null,null,null,null,null,null,null,null,"Not Supplied"]
[null,null,null,null,null,null,null,null,null,null,null,null,null,null,null,"Not Supplied"]
[null,null,null,null,null,null,null,null,null,null,null,null,null,null,null,"Not Supplied"]
[null,null,null,null,null,null,null,null,null,null,null,null,null,null,null,"Not Supplied"]
[null,null,null,null,null,null,null,null,null,null,null,null,null,null,null,"Not Supplied"]
[null,null,null,null,null,null,null,null,null,null,null,null,null,null,null,"Not Supplied"]
[null,null,null,null,null,null,null,null,null,null,null,null,null,null,null,"Not Supplied"]
[null,null,null,null,null,null,null,null,null,null,null,null,null,null,null,"Not Supplied"]
[null,null,null,null,null,null,null,null,null,null,null,null,null,null,null,"Not Supplied"]
[null,null,null,null,null,null,null,null,null,null,null,null,null,null,null,"Not Supplied"]
[null,null,null,null,null,null,null,null,null,null,null,null,null,null,null,"Not Supplied"]
[null,null,null,null,null,null,null,null,null,null,null,null,null,null,null,"Not Supplied"]
[null,null,null,null,null,null,null,null,null,null,null,null,null,null,null,"Not Supplied"]
[null,null,null,null,null,null,null,null,null,null,null,null,null,null,null,"Not Supplied"]
[null,null,null,null,null,null,null,null,null,null,null,null,null,null,null,"Not Supplied"]
[null,null,null,null,null,null,null,null,null,null,null,null,null,null,null,"Not Supplied"]
[null,null,null,null,null,null,null,null,null,null,null,null,null,null,null,"Not Supplied"]
[null,null,null,null,null,null,null,null,null,null,null,null,null,null,null,"Not Supplied"]
[null,null,null,null,null,null,null,null,null,null,null,null,null,null,null,"Not Supplied"]
[null,null,null,null,null,null,null,null,null,null,null,null,null,null,null,"Not Supplied"]
[null,null,null,null,null,null,null,null,null,null,null,null,null,null,null,"Not Supplied"]
[null,null,null,null,null,null,null,null,null,null,null,null,null,null,null,"Not Supplied"]
[null,null,null,null,null,null,null,null,null,null,null,null,null,null,null,"Not Supplied"]
[null,null,null,null,null,null,null,null,null,null,null,null,null,null,null,"Not Supplied"]
[null,null,null,null,null,null,null,null,null,null,null,null,null,null,null,"Not Supplied"]
[null,null,null,null,null,null,null,null,null,null,null,null,null,null,null,"Not Supplied"]
[null,null,null,null,null,null,null,null,null,null,null,null,null,null,null,"Not Supplied"]
[null,null,null,null,null,null,null,null,null,null,null,null,null,null,null,"Not Supplied"]
[null,null,null,null,null,null,null,null,null,null,null,null,null,null,null,"Not Supplied"]
[null,null,null,null,null,null,null,null,null,null,null,null,null,null,null,"Not Supplied"]
[null,null,null,null,null,null,null,null,null,null,null,null,null,null,null,"Not Supplied"]
[null,null,null,null,null,null,null,null,null,null,null,null,null,null,null,"Not Supplied"]
[null,null,null,null,null,null,null,null,null,null,null,null,null,null,null,"Not Supplied"]
[null,null,null,null,null,null,null,null,null,null,null,null,null,null,null,"Not Supplied"]
[null,null,null,null,null,null,null,null,null,null,null,null,null,null,null,"Not Supplied"]
[null,null,null,null,null,null,null,null,null,null,null,null,null,null,null,{"$f":"IsUKPostCode(K515)","v":"Not Supplied"}]
[null,null,null,null,null,null,null,null,null,null,null,null,null,null,null,"Not Supplied"]
[null,null,null,null,null,null,null,null,null,null,null,null,null,null,null,"Not Supplied"]
[null,null,null,null,null,null,null,null,null,null,null,null,null,null,null,"Not Supplied"]
[null,null,null,null,null,null,null,null,null,null,null,null,null,null,null,"Not Supplied"]
[null,null,null,null,null,null,null,null,null,null,null,null,null,null,null,"Not Supplied"]
[null,null,null,null,null,null,null,null,null,null,null,null,null,null,null,"Not Supplied"]
[null,null,null,null,null,null,null,null,null,null,null,null,null,null,null,"Not Supplied"]
[null,null,null,null,null,null,null,null,null,null,null,null,null,null,null,"Not Supplied"]
[null,null,null,null,null,null,null,null,null,null,null,null,null,null,null,"Not Supplied"]
[null,null,null,null,null,null,null,null,null,null,null,null,null,null,null,"Not Supplied"]
[null,null,null,null,null,null,null,null,null,null,null,null,null,null,null,"Not Supplied"]
[null,null,null,null,null,null,null,null,null,null,null,null,null,null,null,"Not Supplied"]
[null,null,null,null,null,null,null,null,null,null,null,null,null,null,null,"Not Supplied"]
[null,null,null,null,null,null,null,null,null,null,null,null,null,null,null,"Not Supplied"]
[null,null,null,null,null,null,null,null,null,null,null,null,null,null,null,"Not Supplied"]
[null,null,null,null,null,null,null,null,null,null,null,null,null,null,null,"Not Supplied"]
[null,null,null,null,null,null,null,null,null,null,null,null,null,null,null,"Not Supplied"]
[null,null,null,null,null,null,null,null,null,null,null,null,null,null,null,"Not Supplied"]
[null,null,null,null,null,null,null,null,null,null,null,null,null,null,null,"Not Supplied"]
[null,null,null,null,null,null,null,null,null,null,null,null,null,null,null,"Not Supplied"]
[null,null,null,null,null,null,null,null,null,null,null,null,null,null,null,"Not Supplied"]
[null,null,null,null,null,null,null,null,null,null,null,null,null,null,null,"Not Supplied"]
[null,null,null,null,null,null,null,null,null,null,null,null,null,null,null,"Not Supplied"]
[null,null,null,null,null,null,null,null,null,null,null,null,null,null,null,"Not Supplied"]
[null,null,null,null,null,null,null,null,null,null,null,null,null,null,null,"Not Supplied"]
[null,null,null,null,null,null,null,null,null,null,null,null,null,null,null,"Not Supplied"]
[null,null,null,null,null,null,null,null,null,null,null,null,null,null,null,"Not Supplied"]
[null,null,null,null,null,null,null,null,null,null,null,null,null,null,null,"Not Supplied"]
[null,null,null,null,null,null,null,null,null,null,null,null,null,null,null,"Not Supplied"]
[null,null,null,null,null,null,null,null,null,null,null,null,null,null,null,"Not Supplied"]
[null,null,null,null,null,null,null,null,null,null,null,null,null,null,null,"Not Supplied"]
[null,null,null,null,null,null,null,null,null,null,null,null,null,null,null,"Not Supplied"]
[null,null,null,null,null,null,null,null,null,null,null,null,null,null,null,"Not Supplied"]
[null,null,null,null,null,null,null,null,null,null,null,null,null,null,null,"Not Supplied"]
[null,null,null,null,null,null,null,null,null,null,null,null,null,null,null,"Not Supplied"]
[null,null,null,null,null,null,null,null,null,null,null,null,null,null,null,"Not Supplied"]
[null,null,null,null,null,null,null,null,null,null,null,null,null,null,null,"Not Supplied"]
[null,null,null,null,null,null,null,null,null,null,null,null,null,null,null,"Not Supplied"]
[null,null,null,null,null,null,null,null,null,null,null,null,null,null,null,"Not Supplied"]
[null,null,null,null,null,null,null,null,null,null,null,null,null,null,null,"Not Supplied"]
[null,null,null,null,null,null,null,null,null,null,null,null,null,null,null,"Not Supplied"]
[null,null,null,null,null,null,null,null,null,null,null,null,null,null,null,"Not Supplied"]
[null,null,null,null,null,null,null,null,null,null,null,null,null,null,null,"Not Supplied"]
[null,null,null,null,null,null,null,null,null,null,null,null,null,null,null,"Not Supplied"]
[null,null,null,null,null,null,null,null,null,null,null,null,null,null,null,"Not Supplied"]
[null,null,null,null,null,null,null,null,null,null,null,null,null,null,null,"Not Supplied"]
[null,null,null,null,null,null,null,null,null,null,null,null,null,null,null,"Not Supplied"]
[null,null,null,null,null,null,null,null,null,null,null,null,null,null,null,"Not Supplied"]
[null,null,null,null,null,null,null,null,null,null,null,null,null,null,null,"Not Supplied"]
[null,null,null,null,null,null,null,null,null,null,null,null,null,null,null,"Not Supplied"]
[null,null,null,null,null,null,null,null,null,null,null,null,null,null,null,"Not Supplied"]
[null,null,null,null,null,null,null,null,null,null,null,null,null,null,null,"Not Supplied"]
[null,null,null,null,null,null,null,null,null,null,null,null,null,null,null,"Not Supplied"]
[null,null,null,null,null,null,null,null,null,null,null,null,null,null,null,"Not Supplied"]
[null,null,null,null,null,null,null,null,null,null,null,null,null,null,null,"Not Supplied"]
[null,null,null,null,null,null,null,null,null,null,null,null,null,null,null,"Not Supplied"]
[null,null,null,null,null,null,null,null,null,null,null,null,null,null,null,"Not Supplied"]
[null,null,null,null,null,null,null,null,null,null,null,null,null,null,null,"Not Supplied"]
[null,null,null,null,null,null,null,null,null,null,null,null,null,null,null,"Not Supplied"]
[null,null,null,null,null,null,null,null,null,null,null,null,null,null,null,"Not Supplied"]
[null,null,null,null,null,null,null,null,null,null,null,null,null,null,null,"Not Supplied"]
[null,null,null,null,null,null,null,null,null,null,null,null,null,null,null,"Not Supplied"]
[null,null,null,null,null,null,null,null,null,null,null,null,null,null,null,"Not Supplied"]
[null,null,null,null,null,null,null,null,null,null,null,null,null,null,null,{"$f":"IsUKPostCode(K579)","v":"Not Supplied"}]
[null,null,null,null,null,null,null,null,null,null,null,null,null,null,null,"Not Supplied"]
[null,null,null,null,null,null,null,null,null,null,null,null,null,null,null,"Not Supplied"]
[null,null,null,null,null,null,null,null,null,null,null,null,null,null,null,"Not Supplied"]
[null,null,null,null,null,null,null,null,null,null,null,null,null,null,null,"Not Supplied"]
[null,null,null,null,null,null,null,null,null,null,null,null,null,null,null,"Not Supplied"]
[null,null,null,null,null,null,null,null,null,null,null,null,null,null,null,"Not Supplied"]
[null,null,null,null,null,null,null,null,null,null,null,null,null,null,null,"Not Supplied"]
[null,null,null,null,null,null,null,null,null,null,null,null,null,null,null,"Not Supplied"]
[null,null,null,null,null,null,null,null,null,null,null,null,null,null,null,"Not Supplied"]
[null,null,null,null,null,null,null,null,null,null,null,null,null,null,null,"Not Supplied"]
[null,null,null,null,null,null,null,null,null,null,null,null,null,null,null,"Not Supplied"]
[null,null,null,null,null,null,null,null,null,null,null,null,null,null,null,"Not Supplied"]
[null,null,null,null,null,null,null,null,null,null,null,null,null,null,null,"Not Supplied"]
[null,null,null,null,null,null,null,null,null,null,null,null,null,null,null,"Not Supplied"]
[null,null,null,null,null,null,null,null,null,null,null,null,null,null,null,"Not Supplied"]
[null,null,null,null,null,null,null,null,null,null,null,null,null,null,null,"Not Supplied"]
[null,null,null,null,null,null,null,null,null,null,null,null,null,null,null,"Not Supplied"]
[null,null,null,null,null,null,null,null,null,null,null,null,null,null,null,"Not Supplied"]
[null,null,null,null,null,null,null,null,null,null,null,null,null,null,null,"Not Supplied"]
[null,null,null,null,null,null,null,null,null,null,null,null,null,null,null,"Not Supplied"]
[null,null,null,null,null,null,null,null,null,null,null,null,null,null,null,"Not Supplied"]
[null,null,null,null,null,null,null,null,null,null,null,null,null,null,null,"Not Supplied"]
[null,null,null,null,null,null,null,null,null,null,null,null,null,null,null,"Not Supplied"]
[null,null,null,null,null,null,null,null,null,null,null,null,null,null,null,"Not Supplied"]
[null,null,null,null,null,null,null,null,null,null,null,null,null,null,null,"Not Supplied"]
[null,null,null,null,null,null,null,null,null,null,null,null,null,null,null,"Not Supplied"]
[null,null,null,null,null,null,null,null,null,null,null,null,null,null,null,"Not Supplied"]
[null,null,null,null,null,null,null,null,null,null,null,null,null,null,null,"Not Supplied"]
[null,null,null,null,null,null,null,null,null,null,null,null,null,null,null,"Not Supplied"]
[null,null,null,null,null,null,null,null,null,null,null,null,null,null,null,"Not Supplied"]
[null,null,null,null,null,null,null,null,null,null,null,null,null,null,null,"Not Supplied"]
[null,null,null,null,null,null,null,null,null,null,null,null,null,null,null,"Not Supplied"]
[null,null,null,null,null,null,null,null,null,null,null,null,null,null,null,"Not Supplied"]
[null,null,null,null,null,null,null,null,null,null,null,null,null,null,null,"Not Supplied"]
[null,null,null,null,null,null,null,null,null,null,null,null,null,null,null,"Not Supplied"]
[null,null,null,null,null,null,null,null,null,null,null,null,null,null,null,"Not Supplied"]
[null,null,null,null,null,null,null,null,null,null,null,null,null,null,null,"Not Supplied"]
[null,null,null,null,null,null,null,null,null,null,null,null,null,null,null,"Not Supplied"]
[null,null,null,null,null,null,null,null,null,null,null,null,null,null,null,"Not Supplied"]
[null,null,null,null,null,null,null,null,null,null,null,null,null,null,null,"Not Supplied"]
[null,null,null,null,null,null,null,null,null,null,null,null,null,null,null,"Not Supplied"]
[null,null,null,null,null,null,null,null,null,null,null,null,null,null,null,"Not Supplied"]
[null,null,null,null,null,null,null,null,null,null,null,null,null,null,null,"Not Supplied"]
[null,null,null,null,null,null,null,null,null,null,null,null,null,null,null,"Not Supplied"]
[null,null,null,null,null,null,null,null,null,null,null,null,null,null,null,"Not Supplied"]
[null,null,null,null,null,null,null,null,null,null,null,null,null,null,null,"Not Supplied"]
[null,null,null,null,null,null,null,null,null,null,null,null,null,null,null,"Not Supplied"]
[null,null,null,null,null,null,null,null,null,null,null,null,null,null,null,"Not Supplied"]
[null,null,null,null,null,null,null,null,null,null,null,null,null,null,null,"Not Supplied"]
[null,null,null,null,null,null,null,null,null,null,null,null,null,null,null,"Not Supplied"]
[null,null,null,null,null,null,null,null,null,null,null,null,null,null,null,"Not Supplied"]
[null,null,null,null,null,null,null,null,null,null,null,null,null,null,null,"Not Supplied"]
[null,null,null,null,null,null,null,null,null,null,null,null,null,null,null,"Not Supplied"]
[null,null,null,null,null,null,null,null,null,null,null,null,null,null,null,"Not Supplied"]
[null,null,null,null,null,null,null,null,null,null,null,null,null,null,null,"Not Supplied"]
[null,null,null,null,null,null,null,null,null,null,null,null,null,null,null,"Not Supplied"]
[null,null,null,null,null,null,null,null,null,null,null,null,null,null,null,"Not Supplied"]
[null,null,null,null,null,null,null,null,null,null,null,null,null,null,null,"Not Supplied"]
[null,null,null,null,null,null,null,null,null,null,null,null,null,null,null,"Not Supplied"]
[null,null,null,null,null,null,null,null,null,null,null,null,null,null,null,"Not Supplied"]
[null,null,null,null,null,null,null,null,null,null,null,null,null,null,null,"Not Supplied"]
[null,null,null,null,null,null,null,null,null,null,null,null,null,null,null,"Not Supplied"]
[null,null,null,null,null,null,null,null,null,null,null,null,null,null,null,"Not Supplied"]
[null,null,null,null,null,null,null,null,null,null,null,null,null,null,null,{"$f":"IsUKPostCode(K643)","v":"Not Supplied"}]
[null,null,null,null,null,null,null,null,null,null,null,null,null,null,null,"Not Supplied"]
[null,null,null,null,null,null,null,null,null,null,null,null,null,null,null,"Not Supplied"]
[null,null,null,null,null,null,null,null,null,null,null,null,null,null,null,"Not Supplied"]
[null,null,null,null,null,null,null,null,null,null,null,null,null,null,null,"Not Supplied"]
[null,null,null,null,null,null,null,null,null,null,null,null,null,null,null,"Not Supplied"]
[null,null,null,null,null,null,null,null,null,null,null,null,null,null,null,"Not Supplied"]
[null,null,null,null,null,null,null,null,null,null,null,null,null,null,null,"Not Supplied"]
[null,null,null,null,null,null,null,null,null,null,null,null,null,null,null,"Not Supplied"]
[null,null,null,null,null,null,null,null,null,null,null,null,null,null,null,"Not Supplied"]
[null,null,null,null,null,null,null,null,null,null,null,null,null,null,null,"Not Supplied"]
[null,null,null,null,null,null,null,null,null,null,null,null,null,null,null,"Not Supplied"]
[null,null,null,null,null,null,null,null,null,null,null,null,null,null,null,"Not Supplied"]
[null,null,null,null,null,null,null,null,null,null,null,null,null,null,null,"Not Supplied"]
[null,null,null,null,null,null,null,null,null,null,null,null,null,null,null,"Not Supplied"]
[null,null,null,null,null,null,null,null,null,null,null,null,null,null,null,"Not Supplied"]
[null,null,null,null,null,null,null,null,null,null,null,null,null,null,null,"Not Supplied"]
[null,null,null,null,null,null,null,null,null,null,null,null,null,null,null,"Not Supplied"]
[null,null,null,null,null,null,null,null,null,null,null,null,null,null,null,"Not Supplied"]
[null,null,null,null,null,null,null,null,null,null,null,null,null,null,null,"Not Supplied"]
[null,null,null,null,null,null,null,null,null,null,null,null,null,null,null,"Not Supplied"]
[null,null,null,null,null,null,null,null,null,null,null,null,null,null,null,"Not Supplied"]
[null,null,null,null,null,null,null,null,null,null,null,null,null,null,null,"Not Supplied"]
[null,null,null,null,null,null,null,null,null,null,null,null,null,null,null,"Not Supplied"]
[null,null,null,null,null,null,null,null,null,null,null,null,null,null,null,"Not Supplied"]
[null,null,null,null,null,null,null,null,null,null,null,null,null,null,null,"Not Supplied"]
[null,null,null,null,null,null,null,null,null,null,null,null,null,null,null,"Not Supplied"]
[null,null,null,null,null,null,null,null,null,null,null,null,null,null,null,"Not Supplied"]
[null,null,null,null,null,null,null,null,null,null,null,null,null,null,null,"Not Supplied"]
[null,null,null,null,null,null,null,null,null,null,null,null,null,null,null,"Not Supplied"]
[null,null,null,null,null,null,null,null,null,null,null,null,null,null,null,"Not Supplied"]
[null,null,null,null,null,null,null,null,null,null,null,null,null,null,null,"Not Supplied"]
[null,null,null,null,null,null,null,null,null,null,null,null,null,null,null,"Not Supplied"]
[null,null,null,null,null,null,null,null,null,null,null,null,null,null,null,"Not Supplied"]
[null,null,null,null,null,null,null,null,null,null,null,null,null,null,null,"Not Supplied"]
[null,null,null,null,null,null,null,null,null,null,null,null,null,null,null,"Not Supplied"]
[null,null,null,null,null,null,null,null,null,null,null,null,null,null,null,"Not Supplied"]
[null,null,null,null,null,null,null,null,null,null,null,null,null,null,null,"Not Supplied"]
[null,null,null,null,null,null,null,null,null,null,null,null,null,null,null,"Not Supplied"]
[null,null,null,null,null,null,null,null,null,null,null,null,null,null,null,"Not Supplied"]
[null,null,null,null,null,null,null,null,null,null,null,null,null,null,null,"Not Supplied"]
[null,null,null,null,null,null,null,null,null,null,null,null,null,null,null,"Not Supplied"]
[null,null,null,null,null,null,null,null,null,null,null,null,null,null,null,"Not Supplied"]
[null,null,null,null,null,null,null,null,null,null,null,null,null,null,null,"Not Supplied"]
[null,null,null,null,null,null,null,null,null,null,null,null,null,null,null,"Not Supplied"]
[null,null,null,null,null,null,null,null,null,null,null,null,null,null,null,"Not Supplied"]
[null,null,null,null,null,null,null,null,null,null,null,null,null,null,null,"Not Supplied"]
[null,null,null,null,null,null,null,null,null,null,null,null,null,null,null,"Not Supplied"]
[null,null,null,null,null,null,null,null,null,null,null,null,null,null,null,"Not Supplied"]
[null,null,null,null,null,null,null,null,null,null,null,null,null,null,null,"Not Supplied"]
[null,null,null,null,null,null,null,null,null,null,null,null,null,null,null,"Not Supplied"]
[null,null,null,null,null,null,null,null,null,null,null,null,null,null,null,"Not Supplied"]
[null,null,null,null,null,null,null,null,null,null,null,null,null,null,null,"Not Supplied"]
[null,null,null,null,null,null,null,null,null,null,null,null,null,null,null,"Not Supplied"]
[null,null,null,null,null,null,null,null,null,null,null,null,null,null,null,"Not Supplied"]
[null,null,null,null,null,null,null,null,null,null,null,null,null,null,null,"Not Supplied"]
[null,null,null,null,null,null,null,null,null,null,null,null,null,null,null,"Not Supplied"]
[null,null,null,null,null,null,null,null,null,null,null,null,null,null,null,"Not Supplied"]
[null,null,null,null,null,null,null,null,null,null,null,null,null,null,null,"Not Supplied"]
[null,null,null,null,null,null,null,null,null,null,null,null,null,null,null,"Not Supplied"]
[null,null,null,null,null,null,null,null,null,null,null,null,null,null,null,"Not Supplied"]
[null,null,null,null,null,null,null,null,null,null,null,null,null,null,null,"Not Supplied"]
[null,null,null,null,null,null,null,null,null,null,null,null,null,null,null,"Not Supplied"]
[null,null,null,null,null,null,null,null,null,null,null,null,null,null,null,"Not Supplied"]
[null,null,null,null,null,null,null,null,null,null,null,null,null,null,null,{"$f":"IsUKPostCode(K707)","v":"Not Supplied"}]
[null,null,null,null,null,null,null,null,null,null,null,null,null,null,null,"Not Supplied"]
[null,null,null,null,null,null,null,null,null,null,null,null,null,null,null,"Not Supplied"]
[null,null,null,null,null,null,null,null,null,null,null,null,null,null,null,"Not Supplied"]
[null,null,null,null,null,null,null,null,null,null,null,null,null,null,null,"Not Supplied"]
[null,null,null,null,null,null,null,null,null,null,null,null,null,null,null,"Not Supplied"]
[null,null,null,null,null,null,null,null,null,null,null,null,null,null,null,"Not Supplied"]
[null,null,null,null,null,null,null,null,null,null,null,null,null,null,null,"Not Supplied"]
[null,null,null,null,null,null,null,null,null,null,null,null,null,null,null,"Not Supplied"]
[null,null,null,null,null,null,null,null,null,null,null,null,null,null,null,"Not Supplied"]
[null,null,null,null,null,null,null,null,null,null,null,null,null,null,null,"Not Supplied"]
[null,null,null,null,null,null,null,null,null,null,null,null,null,null,null,"Not Supplied"]
[null,null,null,null,null,null,null,null,null,null,null,null,null,null,null,"Not Supplied"]
[null,null,null,null,null,null,null,null,null,null,null,null,null,null,null,"Not Supplied"]
[null,null,null,null,null,null,null,null,null,null,null,null,null,null,null,"Not Supplied"]
[null,null,null,null,null,null,null,null,null,null,null,null,null,null,null,"Not Supplied"]
[null,null,null,null,null,null,null,null,null,null,null,null,null,null,null,"Not Supplied"]
[null,null,null,null,null,null,null,null,null,null,null,null,null,null,null,"Not Supplied"]
[null,null,null,null,null,null,null,null,null,null,null,null,null,null,null,"Not Supplied"]
[null,null,null,null,null,null,null,null,null,null,null,null,null,null,null,"Not Supplied"]
[null,null,null,null,null,null,null,null,null,null,null,null,null,null,null,"Not Supplied"]
[null,null,null,null,null,null,null,null,null,null,null,null,null,null,null,"Not Supplied"]
[null,null,null,null,null,null,null,null,null,null,null,null,null,null,null,"Not Supplied"]
[null,null,null,null,null,null,null,null,null,null,null,null,null,null,null,"Not Supplied"]
[null,null,null,null,null,null,null,null,null,null,null,null,null,null,null,"Not Supplied"]
[null,null,null,null,null,null,null,null,null,null,null,null,null,null,null,"Not Supplied"]
[null,null,null,null,null,null,null,null,null,null,null,null,null,null,null,"Not Supplied"]
[null,null,null,null,null,null,null,null,null,null,null,null,null,null,null,"Not Supplied"]
[null,null,null,null,null,null,null,null,null,null,null,null,null,null,null,"Not Supplied"]
[null,null,null,null,null,null,null,null,null,null,null,null,null,null,null,"Not Supplied"]
[null,null,null,null,null,null,null,null,null,null,null,null,null,null,null,"Not Supplied"]
[null,null,null,null,null,null,null,null,null,null,null,null,null,null,null,"Not Supplied"]
[null,null,null,null,null,null,null,null,null,null,null,null,null,null,null,"Not Supplied"]
[null,null,null,null,null,null,null,null,null,null,null,null,null,null,null,"Not Supplied"]
[null,null,null,null,null,null,null,null,null,null,null,null,null,null,null,"Not Supplied"]
[null,null,null,null,null,null,null,null,null,null,null,null,null,null,null,"Not Supplied"]
[null,null,null,null,null,null,null,null,null,null,null,null,null,null,null,"Not Supplied"]
[null,null,null,null,null,null,null,null,null,null,null,null,null,null,null,"Not Supplied"]
[null,null,null,null,null,null,null,null,null,null,null,null,null,null,null,"Not Supplied"]
[null,null,null,null,null,null,null,null,null,null,null,null,null,null,null,"Not Supplied"]
[null,null,null,null,null,null,null,null,null,null,null,null,null,null,null,"Not Supplied"]
[null,null,null,null,null,null,null,null,null,null,null,null,null,null,null,"Not Supplied"]
[null,null,null,null,null,null,null,null,null,null,null,null,null,null,null,"Not Supplied"]
[null,null,null,null,null,null,null,null,null,null,null,null,null,null,null,"Not Supplied"]
[null,null,null,null,null,null,null,null,null,null,null,null,null,null,null,"Not Supplied"]
[null,null,null,null,null,null,null,null,null,null,null,null,null,null,null,"Not Supplied"]
[null,null,null,null,null,null,null,null,null,null,null,null,null,null,null,"Not Supplied"]
[null,null,null,null,null,null,null,null,null,null,null,null,null,null,null,"Not Supplied"]
[null,null,null,null,null,null,null,null,null,null,null,null,null,null,null,"Not Supplied"]
[null,null,null,null,null,null,null,null,null,null,null,null,null,null,null,"Not Supplied"]
[null,null,null,null,null,null,null,null,null,null,null,null,null,null,null,"Not Supplied"]
[null,null,null,null,null,null,null,null,null,null,null,null,null,null,null,"Not Supplied"]
[null,null,null,null,null,null,null,null,null,null,null,null,null,null,null,"Not Supplied"]
[null,null,null,null,null,null,null,null,null,null,null,null,null,null,null,"Not Supplied"]
[null,null,null,null,null,null,null,null,null,null,null,null,null,null,null,"Not Supplied"]
[null,null,null,null,null,null,null,null,null,null,null,null,null,null,null,"Not Supplied"]
[null,null,null,null,null,null,null,null,null,null,null,null,null,null,null,"Not Supplied"]
[null,null,null,null,null,null,null,null,null,null,null,null,null,null,null,"Not Supplied"]
[null,null,null,null,null,null,null,null,null,null,null,null,null,null,null,"Not Supplied"]
[null,null,null,null,null,null,null,null,null,null,null,null,null,null,null,"Not Supplied"]
[null,null,null,null,null,null,null,null,null,null,null,null,null,null,null,"Not Supplied"]
[null,null,null,null,null,null,null,null,null,null,null,null,null,null,null,"Not Supplied"]
[null,null,null,null,null,null,null,null,null,null,null,null,null,null,null,"Not Supplied"]
[null,null,null,null,null,null,null,null,null,null,null,null,null,null,null,"Not Supplied"]
[null,null,null,null,null,null,null,null,null,null,null,null,null,null,null,{"$f":"IsUKPostCode(K771)","v":"Not Supplied"}]
[null,null,null,null,null,null,null,null,null,null,null,null,null,null,null,"Not Supplied"]
[null,null,null,null,null,null,null,null,null,null,null,null,null,null,null,"Not Supplied"]
[null,null,null,null,null,null,null,null,null,null,null,null,null,null,null,"Not Supplied"]
[null,null,null,null,null,null,null,null,null,null,null,null,null,null,null,"Not Supplied"]
[null,null,null,null,null,null,null,null,null,null,null,null,null,null,null,"Not Supplied"]
[null,null,null,null,null,null,null,null,null,null,null,null,null,null,null,"Not Supplied"]
[null,null,null,null,null,null,null,null,null,null,null,null,null,null,null,"Not Supplied"]
[null,null,null,null,null,null,null,null,null,null,null,null,null,null,null,"Not Supplied"]
[null,null,null,null,null,null,null,null,null,null,null,null,null,null,null,"Not Supplied"]
[null,null,null,null,null,null,null,null,null,null,null,null,null,null,null,"Not Supplied"]
[null,null,null,null,null,null,null,null,null,null,null,null,null,null,null,"Not Supplied"]
[null,null,null,null,null,null,null,null,null,null,null,null,null,null,null,"Not Supplied"]
[null,null,null,null,null,null,null,null,null,null,null,null,null,null,null,"Not Supplied"]
[null,null,null,null,null,null,null,null,null,null,null,null,null,null,null,"Not Supplied"]
[null,null,null,null,null,null,null,null,null,null,null,null,null,null,null,"Not Supplied"]
[null,null,null,null,null,null,null,null,null,null,null,null,null,null,null,"Not Supplied"]
[null,null,null,null,null,null,null,null,null,null,null,null,null,null,null,"Not Supplied"]
[null,null,null,null,null,null,null,null,null,null,null,null,null,null,null,"Not Supplied"]
[null,null,null,null,null,null,null,null,null,null,null,null,null,null,null,"Not Supplied"]
[null,null,null,null,null,null,null,null,null,null,null,null,null,null,null,"Not Supplied"]
[null,null,null,null,null,null,null,null,null,null,null,null,null,null,null,"Not Supplied"]
[null,null,null,null,null,null,null,null,null,null,null,null,null,null,null,"Not Supplied"]
[null,null,null,null,null,null,null,null,null,null,null,null,null,null,null,"Not Supplied"]
[null,null,null,null,null,null,null,null,null,null,null,null,null,null,null,"Not Supplied"]
[null,null,null,null,null,null,null,null,null,null,null,null,null,null,null,"Not Supplied"]
[null,null,null,null,null,null,null,null,null,null,null,null,null,null,null,"Not Supplied"]
[null,null,null,null,null,null,null,null,null,null,null,null,null,null,null,"Not Supplied"]
[null,null,null,null,null,null,null,null,null,null,null,null,null,null,null,"Not Supplied"]
[null,null,null,null,null,null,null,null,null,null,null,null,null,null,null,"Not Supplied"]
[null,null,null,null,null,null,null,null,null,null,null,null,null,null,null,"Not Supplied"]
[null,null,null,null,null,null,null,null,null,null,null,null,null,null,null,"Not Supplied"]
[null,null,null,null,null,null,null,null,null,null,null,null,null,null,null,"Not Supplied"]
[null,null,null,null,null,null,null,null,null,null,null,null,null,null,null,"Not Supplied"]
[null,null,null,null,null,null,null,null,null,null,null,null,null,null,null,"Not Supplied"]
[null,null,null,null,null,null,null,null,null,null,null,null,null,null,null,"Not Supplied"]
[null,null,null,null,null,null,null,null,null,null,null,null,null,null,null,"Not Supplied"]
[null,null,null,null,null,null,null,null,null,null,null,null,null,null,null,"Not Supplied"]
[null,null,null,null,null,null,null,null,null,null,null,null,null,null,null,"Not Supplied"]
[null,null,null,null,null,null,null,null,null,null,null,null,null,null,null,"Not Supplied"]
[null,null,null,null,null,null,null,null,null,null,null,null,null,null,null,"Not Supplied"]
[null,null,null,null,null,null,null,null,null,null,null,null,null,null,null,"Not Supplied"]
[null,null,null,null,null,null,null,null,null,null,null,null,null,null,null,"Not Supplied"]
[null,null,null,null,null,null,null,null,null,null,null,null,null,null,null,"Not Supplied"]
[null,null,null,null,null,null,null,null,null,null,null,null,null,null,null,"Not Supplied"]
[null,null,null,null,null,null,null,null,null,null,null,null,null,null,null,"Not Supplied"]
[null,null,null,null,null,null,null,null,null,null,null,null,null,null,null,"Not Supplied"]
[null,null,null,null,null,null,null,null,null,null,null,null,null,null,null,"Not Supplied"]
[null,null,null,null,null,null,null,null,null,null,null,null,null,null,null,"Not Supplied"]
[null,null,null,null,null,null,null,null,null,null,null,null,null,null,null,"Not Supplied"]
[null,null,null,null,null,null,null,null,null,null,null,null,null,null,null,"Not Supplied"]
[null,null,null,null,null,null,null,null,null,null,null,null,null,null,null,"Not Supplied"]
[null,null,null,null,null,null,null,null,null,null,null,null,null,null,null,"Not Supplied"]
[null,null,null,null,null,null,null,null,null,null,null,null,null,null,null,"Not Supplied"]
[null,null,null,null,null,null,null,null,null,null,null,null,null,null,null,"Not Supplied"]
[null,null,null,null,null,null,null,null,null,null,null,null,null,null,null,"Not Supplied"]
[null,null,null,null,null,null,null,null,null,null,null,null,null,null,null,"Not Supplied"]
[null,null,null,null,null,null,null,null,null,null,null,null,null,null,null,"Not Supplied"]
[null,null,null,null,null,null,null,null,null,null,null,null,null,null,null,"Not Supplied"]
[null,null,null,null,null,null,null,null,null,null,null,null,null,null,null,"Not Supplied"]
[null,null,null,null,null,null,null,null,null,null,null,null,null,null,null,"Not Supplied"]
[null,null,null,null,null,null,null,null,null,null,null,null,null,null,null,"Not Supplied"]
[null,null,null,null,null,null,null,null,null,null,null,null,null,null,null,"Not Supplied"]
[null,null,null,null,null,null,null,null,null,null,null,null,null,null,null,"Not Supplied"]
[null,null,null,null,null,null,null,null,null,null,null,null,null,null,null,{"$f":"IsUKPostCode(K835)","v":"Not Supplied"}]
[null,null,null,null,null,null,null,null,null,null,null,null,null,null,null,"Not Supplied"]
[null,null,null,null,null,null,null,null,null,null,null,null,null,null,null,"Not Supplied"]
[null,null,null,null,null,null,null,null,null,null,null,null,null,null,null,"Not Supplied"]
[null,null,null,null,null,null,null,null,null,null,null,null,null,null,null,"Not Supplied"]
[null,null,null,null,null,null,null,null,null,null,null,null,null,null,null,"Not Supplied"]
[null,null,null,null,null,null,null,null,null,null,null,null,null,null,null,"Not Supplied"]
[null,null,null,null,null,null,null,null,null,null,null,null,null,null,null,"Not Supplied"]
[null,null,null,null,null,null,null,null,null,null,null,null,null,null,null,"Not Supplied"]
[null,null,null,null,null,null,null,null,null,null,null,null,null,null,null,"Not Supplied"]
[null,null,null,null,null,null,null,null,null,null,null,null,null,null,null,"Not Supplied"]
[null,null,null,null,null,null,null,null,null,null,null,null,null,null,null,"Not Supplied"]
[null,null,null,null,null,null,null,null,null,null,null,null,null,null,null,"Not Supplied"]
[null,null,null,null,null,null,null,null,null,null,null,null,null,null,null,"Not Supplied"]
[null,null,null,null,null,null,null,null,null,null,null,null,null,null,null,"Not Supplied"]
[null,null,null,null,null,null,null,null,null,null,null,null,null,null,null,"Not Supplied"]
[null,null,null,null,null,null,null,null,null,null,null,null,null,null,null,"Not Supplied"]
[null,null,null,null,null,null,null,null,null,null,null,null,null,null,null,"Not Supplied"]
[null,null,null,null,null,null,null,null,null,null,null,null,null,null,null,"Not Supplied"]
[null,null,null,null,null,null,null,null,null,null,null,null,null,null,null,"Not Supplied"]
[null,null,null,null,null,null,null,null,null,null,null,null,null,null,null,"Not Supplied"]
[null,null,null,null,null,null,null,null,null,null,null,null,null,null,null,"Not Supplied"]
[null,null,null,null,null,null,null,null,null,null,null,null,null,null,null,"Not Supplied"]
[null,null,null,null,null,null,null,null,null,null,null,null,null,null,null,"Not Supplied"]
[null,null,null,null,null,null,null,null,null,null,null,null,null,null,null,"Not Supplied"]
[null,null,null,null,null,null,null,null,null,null,null,null,null,null,null,"Not Supplied"]
[null,null,null,null,null,null,null,null,null,null,null,null,null,null,null,"Not Supplied"]
[null,null,null,null,null,null,null,null,null,null,null,null,null,null,null,"Not Supplied"]
[null,null,null,null,null,null,null,null,null,null,null,null,null,null,null,"Not Supplied"]
[null,null,null,null,null,null,null,null,null,null,null,null,null,null,null,"Not Supplied"]
[null,null,null,null,null,null,null,null,null,null,null,null,null,null,null,"Not Supplied"]
[null,null,null,null,null,null,null,null,null,null,null,null,null,null,null,"Not Supplied"]
[null,null,null,null,null,null,null,null,null,null,null,null,null,null,null,"Not Supplied"]
[null,null,null,null,null,null,null,null,null,null,null,null,null,null,null,"Not Supplied"]
[null,null,null,null,null,null,null,null,null,null,null,null,null,null,null,"Not Supplied"]
[null,null,null,null,null,null,null,null,null,null,null,null,null,null,null,"Not Supplied"]
[null,null,null,null,null,null,null,null,null,null,null,null,null,null,null,"Not Supplied"]
[null,null,null,null,null,null,null,null,null,null,null,null,null,null,null,"Not Supplied"]
[null,null,null,null,null,null,null,null,null,null,null,null,null,null,null,"Not Supplied"]
[null,null,null,null,null,null,null,null,null,null,null,null,null,null,null,"Not Supplied"]
[null,null,null,null,null,null,null,null,null,null,null,null,null,null,null,"Not Supplied"]
[null,null,null,null,null,null,null,null,null,null,null,null,null,null,null,"Not Supplied"]
[null,null,null,null,null,null,null,null,null,null,null,null,null,null,null,"Not Supplied"]
[null,null,null,null,null,null,null,null,null,null,null,null,null,null,null,"Not Supplied"]
[null,null,null,null,null,null,null,null,null,null,null,null,null,null,null,"Not Supplied"]
[null,null,null,null,null,null,null,null,null,null,null,null,null,null,null,"Not Supplied"]
[null,null,null,null,null,null,null,null,null,null,null,null,null,null,null,"Not Supplied"]
[null,null,null,null,null,null,null,null,null,null,null,null,null,null,null,"Not Supplied"]
[null,null,null,null,null,null,null,null,null,null,null,null,null,null,null,"Not Supplied"]
[null,null,null,null,null,null,null,null,null,null,null,null,null,null,null,"Not Supplied"]
[null,null,null,null,null,null,null,null,null,null,null,null,null,null,null,"Not Supplied"]
[null,null,null,null,null,null,null,null,null,null,null,null,null,null,null,"Not Supplied"]
[null,null,null,null,null,null,null,null,null,null,null,null,null,null,null,"Not Supplied"]
[null,null,null,null,null,null,null,null,null,null,null,null,null,null,null,"Not Supplied"]
[null,null,null,null,null,null,null,null,null,null,null,null,null,null,null,"Not Supplied"]
[null,null,null,null,null,null,null,null,null,null,null,null,null,null,null,"Not Supplied"]
[null,null,null,null,null,null,null,null,null,null,null,null,null,null,null,"Not Supplied"]
[null,null,null,null,null,null,null,null,null,null,null,null,null,null,null,"Not Supplied"]
[null,null,null,null,null,null,null,null,null,null,null,null,null,null,null,"Not Supplied"]
[null,null,null,null,null,null,null,null,null,null,null,null,null,null,null,"Not Supplied"]
[null,null,null,null,null,null,null,null,null,null,null,null,null,null,null,"Not Supplied"]
[null,null,null,null,null,null,null,null,null,null,null,null,null,null,null,"Not Supplied"]
[null,null,null,null,null,null,null,null,null,null,null,null,null,null,null,"Not Supplied"]
[null,null,null,null,null,null,null,null,null,null,null,null,null,null,null,"Not Supplied"]
[null,null,null,null,null,null,null,null,null,null,null,null,null,null,null,{"$f":"IsUKPostCode(K899)","v":"Not Supplied"}]
[null,null,null,null,null,null,null,null,null,null,null,null,null,null,null,"Not Supplied"]
[null,null,null,null,null,null,null,null,null,null,null,null,null,null,null,"Not Supplied"]
[null,null,null,null,null,null,null,null,null,null,null,null,null,null,null,"Not Supplied"]
[null,null,null,null,null,null,null,null,null,null,null,null,null,null,null,"Not Supplied"]
[null,null,null,null,null,null,null,null,null,null,null,null,null,null,null,"Not Supplied"]
[null,null,null,null,null,null,null,null,null,null,null,null,null,null,null,"Not Supplied"]
[null,null,null,null,null,null,null,null,null,null,null,null,null,null,null,"Not Supplied"]
[null,null,null,null,null,null,null,null,null,null,null,null,null,null,null,"Not Supplied"]
[null,null,null,null,null,null,null,null,null,null,null,null,null,null,null,"Not Supplied"]
[null,null,null,null,null,null,null,null,null,null,null,null,null,null,null,"Not Supplied"]
[null,null,null,null,null,null,null,null,null,null,null,null,null,null,null,"Not Supplied"]
[null,null,null,null,null,null,null,null,null,null,null,null,null,null,null,"Not Supplied"]
[null,null,null,null,null,null,null,null,null,null,null,null,null,null,null,"Not Supplied"]
[null,null,null,null,null,null,null,null,null,null,null,null,null,null,null,"Not Supplied"]
[null,null,null,null,null,null,null,null,null,null,null,null,null,null,null,"Not Supplied"]
[null,null,null,null,null,null,null,null,null,null,null,null,null,null,null,"Not Supplied"]
[null,null,null,null,null,null,null,null,null,null,null,null,null,null,null,"Not Supplied"]
[null,null,null,null,null,null,null,null,null,null,null,null,null,null,null,"Not Supplied"]
[null,null,null,null,null,null,null,null,null,null,null,null,null,null,null,"Not Supplied"]
[null,null,null,null,null,null,null,null,null,null,null,null,null,null,null,"Not Supplied"]
[null,null,null,null,null,null,null,null,null,null,null,null,null,null,null,"Not Supplied"]
[null,null,null,null,null,null,null,null,null,null,null,null,null,null,null,"Not Supplied"]
[null,null,null,null,null,null,null,null,null,null,null,null,null,null,null,"Not Supplied"]
[null,null,null,null,null,null,null,null,null,null,null,null,null,null,null,"Not Supplied"]
[null,null,null,null,null,null,null,null,null,null,null,null,null,null,null,"Not Supplied"]
[null,null,null,null,null,null,null,null,null,null,null,null,null,null,null,"Not Supplied"]
[null,null,null,null,null,null,null,null,null,null,null,null,null,null,null,"Not Supplied"]
[null,null,null,null,null,null,null,null,null,null,null,null,null,null,null,"Not Supplied"]
[null,null,null,null,null,null,null,null,null,null,null,null,null,null,null,"Not Supplied"]
[null,null,null,null,null,null,null,null,null,null,null,null,null,null,null,"Not Supplied"]
[null,null,null,null,null,null,null,null,null,null,null,null,null,null,null,"Not Supplied"]
[null,null,null,null,null,null,null,null,null,null,null,null,null,null,null,"Not Supplied"]
[null,null,null,null,null,null,null,null,null,null,null,null,null,null,null,"Not Supplied"]
[null,null,null,null,null,null,null,null,null,null,null,null,null,null,null,"Not Supplied"]
[null,null,null,null,null,null,null,null,null,null,null,null,null,null,null,"Not Supplied"]
[null,null,null,null,null,null,null,null,null,null,null,null,null,null,null,"Not Supplied"]
[null,null,null,null,null,null,null,null,null,null,null,null,null,null,null,"Not Supplied"]
[null,null,null,null,null,null,null,null,null,null,null,null,null,null,null,"Not Supplied"]
[null,null,null,null,null,null,null,null,null,null,null,null,null,null,null,"Not Supplied"]
[null,null,null,null,null,null,null,null,null,null,null,null,null,null,null,"Not Supplied"]
[null,null,null,null,null,null,null,null,null,null,null,null,null,null,null,"Not Supplied"]
[null,null,null,null,null,null,null,null,null,null,null,null,null,null,null,"Not Supplied"]
[null,null,null,null,null,null,null,null,null,null,null,null,null,null,null,"Not Supplied"]
[null,null,null,null,null,null,null,null,null,null,null,null,null,null,null,"Not Supplied"]
[null,null,null,null,null,null,null,null,null,null,null,null,null,null,null,"Not Supplied"]
[null,null,null,null,null,null,null,null,null,null,null,null,null,null,null,"Not Supplied"]
[null,null,null,null,null,null,null,null,null,null,null,null,null,null,null,"Not Supplied"]
[null,null,null,null,null,null,null,null,null,null,null,null,null,null,null,"Not Supplied"]
[null,null,null,null,null,null,null,null,null,null,null,null,null,null,null,"Not Supplied"]
[null,null,null,null,null,null,null,null,null,null,null,null,null,null,null,"Not Supplied"]
[null,null,null,null,null,null,null,null,null,null,null,null,null,null,null,"Not Supplied"]
[null,null,null,null,null,null,null,null,null,null,null,null,null,null,null,"Not Supplied"]
[null,null,null,null,null,null,null,null,null,null,null,null,null,null,null,"Not Supplied"]
[null,null,null,null,null,null,null,null,null,null,null,null,null,null,null,"Not Supplied"]
[null,null,null,null,null,null,null,null,null,null,null,null,null,null,null,"Not Supplied"]
[null,null,null,null,null,null,null,null,null,null,null,null,null,null,null,"Not Supplied"]
[null,null,null,null,null,null,null,null,null,null,null,null,null,null,null,"Not Supplied"]
[null,null,null,null,null,null,null,null,null,null,null,null,null,null,null,"Not Supplied"]
[null,null,null,null,null,null,null,null,null,null,null,null,null,null,null,"Not Supplied"]
[null,null,null,null,null,null,null,null,null,null,null,null,null,null,null,"Not Supplied"]
[null,null,null,null,null,null,null,null,null,null,null,null,null,null,null,"Not Supplied"]
[null,null,null,null,null,null,null,null,null,null,null,null,null,null,null,"Not Supplied"]
[null,null,null,null,null,null,null,null,null,null,null,null,null,null,null,"Not Supplied"]
[null,null,null,null,null,null,null,null,null,null,null,null,null,null,null,{"$f":"IsUKPostCode(K963)","v":"Not Supplied"}]
[null,null,null,null,null,null,null,null,null,null,null,null,null,null,null,"Not Supplied"]
[null,null,null,null,null,null,null,null,null,null,null,null,null,null,null,"Not Supplied"]
[null,null,null,null,null,null,null,null,null,null,null,null,null,null,null,"Not Supplied"]
[null,null,null,null,null,null,null,null,null,null,null,null,null,null,null,"Not Supplied"]
[null,null,null,null,null,null,null,null,null,null,null,null,null,null,null,"Not Supplied"]
[null,null,null,null,null,null,null,null,null,null,null,null,null,null,null,"Not Supplied"]
[null,null,null,null,null,null,null,null,null,null,null,null,null,null,null,"Not Supplied"]
[null,null,null,null,null,null,null,null,null,null,null,null,null,null,null,"Not Supplied"]
[null,null,null,null,null,null,null,null,null,null,null,null,null,null,null,"Not Supplied"]
[null,null,null,null,null,null,null,null,null,null,null,null,null,null,null,"Not Supplied"]
[null,null,null,null,null,null,null,null,null,null,null,null,null,null,null,"Not Supplied"]
[null,null,null,null,null,null,null,null,null,null,null,null,null,null,null,"Not Supplied"]
[null,null,null,null,null,null,null,null,null,null,null,null,null,null,null,"Not Supplied"]
[null,null,null,null,null,null,null,null,null,null,null,null,null,null,null,"Not Supplied"]
[null,null,null,null,null,null,null,null,null,null,null,null,null,null,null,"Not Supplied"]
[null,null,null,null,null,null,null,null,null,null,null,null,null,null,null,"Not Supplied"]
[null,null,null,null,null,null,null,null,null,null,null,null,null,null,null,"Not Supplied"]
[null,null,null,null,null,null,null,null,null,null,null,null,null,null,null,"Not Supplied"]
[null,null,null,null,null,null,null,null,null,null,null,null,null,null,null,"Not Supplied"]
[null,null,null,null,null,null,null,null,null,null,null,null,null,null,null,"Not Supplied"]
[null,null,null,null,null,null,null,null,null,null,null,null,null,null,null,"Not Supplied"]
[null,null,null,null,null,null,null,null,null,null,null,null,null,null,null,"Not Supplied"]
[null,null,null,null,null,null,null,null,null,null,null,null,null,null,null,"Not Supplied"]
[null,null,null,null,null,null,null,null,null,null,null,null,null,null,null,"Not Supplied"]
[null,null,null,null,null,null,null,null,null,null,null,null,null,null,null,"Not Supplied"]
[null,null,null,null,null,null,null,null,null,null,null,null,null,null,null,"Not Supplied"]
[null,null,null,null,null,null,null,null,null,null,null,null,null,null,null,"Not Supplied"]
[null,null,null,null,null,null,null,null,null,null,null,null,null,null,null,"Not Supplied"]
[null,null,null,null,null,null,null,null,null,null,null,null,null,null,null,"Not Supplied"]
[null,null,null,null,null,null,null,null,null,null,null,null,null,null,null,"Not Supplied"]
[null,null,null,null,null,null,null,null,null,null,null,null,null,null,null,"Not Supplied"]
[null,null,null,null,null,null,null,null,null,null,null,null,null,null,null,"Not Supplied"]
[null,null,null,null,null,null,null,null,null,null,null,null,null,null,null,"Not Supplied"]
[null,null,null,null,null,null,null,null,null,null,null,null,null,null,null,"Not Supplied"]
[null,null,null,null,null,null,null,null,null,null,null,null,null,null,null,"Not Supplied"]
[null,null,null,null,null,null,null,null,null,null,null,null,null,null,null,"Not Supplied"]
[null,null,null,null,null,null,null,null,null,null,null,null,null,null,null,"Not Supplied"]
[null,null,null,null,null,null,null,null,null,null,null,null,null,null,null,"Not Supplied"]
[null,null,null,null,null,null,null,null,null,null,null,null,null,null,null,"Not Supplied"]
[null,null,null,null,null,null,null,null,null,null,null,null,null,null,null,"Not Supplied"]
[null,null,null,null,null,null,null,null,null,null,null,null,null,null,null,"Not Supplied"]
[null,null,null,null,null,null,null,null,null,null,null,null,null,null,null,"Not Supplied"]
[null,null,null,null,null,null,null,null,null,null,null,null,null,null,null,"Not Supplied"]
[null,null,null,null,null,null,null,null,null,null,null,null,null,null,null,"Not Supplied"]
[null,null,null,null,null,null,null,null,null,null,null,null,null,null,null,"Not Supplied"]
[null,null,null,null,null,null,null,null,null,null,null,null,null,null,null,"Not Supplied"]
[null,null,null,null,null,null,null,null,null,null,null,null,null,null,null,"Not Supplied"]
[null,null,null,null,null,null,null,null,null,null,null,null,null,null,null,"Not Supplied"]
[null,null,null,null,null,null,null,null,null,null,null,null,null,null,null,"Not Supplied"]
[null,null,null,null,null,null,null,null,null,null,null,null,null,null,null,"Not Supplied"]
[null,null,null,null,null,null,null,null,null,null,null,null,null,null,null,"Not Supplied"]
[null,null,null,null,null,null,null,null,null,null,null,null,null,null,null,"Not Supplied"]
[null,null,null,null,null,null,null,null,null,null,null,null,null,null,null,"Not Supplied"]
[null,null,null,null,null,null,null,null,null,null,null,null,null,null,null,"Not Supplied"]
[null,null,null,null,null,null,null,null,null,null,null,null,null,null,null,"Not Supplied"]
[null,null,null,null,null,null,null,null,null,null,null,null,null,null,null,"Not Supplied"]
[null,null,null,null,null,null,null,null,null,null,null,null,null,null,null,"Not Supplied"]
[null,null,null,null,null,null,null,null,null,null,null,null,null,null,null,"Not Supplied"]
[null,null,null,null,null,null,null,null,null,null,null,null,null,null,null,"Not Supplied"]
[null,null,null,null,null,null,null,null,null,null,null,null,null,null,null,"Not Supplied"]
[null,null,null,null,null,null,null,null,null,null,null,null,null,null,null,"Not Supplied"]
[null,null,null,null,null,null,null,null,null,null,null,null,null,null,null,"Not Supplied"]
[null,null,null,null,null,null,null,null,null,null,null,null,null,null,null,"Not Supplied"]
[null,null,null,null,null,null,null,null,null,null,null,null,null,null,null,{"$f":"IsUKPostCode(K1027)","v":"Not Supplied"}]
[null,null,null,null,null,null,null,null,null,null,null,null,null,null,null,"Not Supplied"]
[null,null,null,null,null,null,null,null,null,null,null,null,null,null,null,"Not Supplied"]
[null,null,null,null,null,null,null,null,null,null,null,null,null,null,null,"Not Supplied"]
[null,null,null,null,null,null,null,null,null,null,null,null,null,null,null,"Not Supplied"]
[null,null,null,null,null,null,null,null,null,null,null,null,null,null,null,"Not Supplied"]
[null,null,null,null,null,null,null,null,null,null,null,null,null,null,null,"Not Supplied"]
[null,null,null,null,null,null,null,null,null,null,null,null,null,null,null,"Not Supplied"]
[null,null,null,null,null,null,null,null,null,null,null,null,null,null,null,"Not Supplied"]
[null,null,null,null,null,null,null,null,null,null,null,null,null,null,null,"Not Supplied"]
[null,null,null,null,null,null,null,null,null,null,null,null,null,null,null,"Not Supplied"]
[null,null,null,null,null,null,null,null,null,null,null,null,null,null,null,"Not Supplied"]
[null,null,null,null,null,null,null,null,null,null,null,null,null,null,null,"Not Supplied"]
[null,null,null,null,null,null,null,null,null,null,null,null,null,null,null,"Not Supplied"]
[null,null,null,null,null,null,null,null,null,null,null,null,null,null,null,"Not Supplied"]
[null,null,null,null,null,null,null,null,null,null,null,null,null,null,null,"Not Supplied"]
[null,null,null,null,null,null,null,null,null,null,null,null,null,null,null,"Not Supplied"]
[null,null,null,null,null,null,null,null,null,null,null,null,null,null,null,"Not Supplied"]
[null,null,null,null,null,null,null,null,null,null,null,null,null,null,null,"Not Supplied"]
[null,null,null,null,null,null,null,null,null,null,null,null,null,null,null,"Not Supplied"]
[null,null,null,null,null,null,null,null,null,null,null,null,null,null,null,"Not Supplied"]
[null,null,null,null,null,null,null,null,null,null,null,null,null,null,null,"Not Supplied"]
[null,null,null,null,null,null,null,null,null,null,null,null,null,null,null,"Not Supplied"]
[null,null,null,null,null,null,null,null,null,null,null,null,null,null,null,"Not Supplied"]
[null,null,null,null,null,null,null,null,null,null,null,null,null,null,null,"Not Supplied"]
[null,null,null,null,null,null,null,null,null,null,null,null,null,null,null,"Not Supplied"]
[null,null,null,null,null,null,null,null,null,null,null,null,null,null,null,"Not Supplied"]
[null,null,null,null,null,null,null,null,null,null,null,null,null,null,null,"Not Supplied"]
[null,null,null,null,null,null,null,null,null,null,null,null,null,null,null,"Not Supplied"]
[null,null,null,null,null,null,null,null,null,null,null,null,null,null,null,"Not Supplied"]
[null,null,null,null,null,null,null,null,null,null,null,null,null,null,null,"Not Supplied"]
[null,null,null,null,null,null,null,null,null,null,null,null,null,null,null,"Not Supplied"]
[null,null,null,null,null,null,null,null,null,null,null,null,null,null,null,"Not Supplied"]
[null,null,null,null,null,null,null,null,null,null,null,null,null,null,null,"Not Supplied"]
[null,null,null,null,null,null,null,null,null,null,null,null,null,null,null,"Not Supplied"]
[null,null,null,null,null,null,null,null,null,null,null,null,null,null,null,"Not Supplied"]
[null,null,null,null,null,null,null,null,null,null,null,null,null,null,null,"Not Supplied"]
[null,null,null,null,null,null,null,null,null,null,null,null,null,null,null,"Not Supplied"]
[null,null,null,null,null,null,null,null,null,null,null,null,null,null,null,"Not Supplied"]
[null,null,null,null,null,null,null,null,null,null,null,null,null,null,null,"Not Supplied"]
[null,null,null,null,null,null,null,null,null,null,null,null,null,null,null,"Not Supplied"]
[null,null,null,null,null,null,null,null,null,null,null,null,null,null,null,"Not Supplied"]
[null,null,null,null,null,null,null,null,null,null,null,null,null,null,null,"Not Supplied"]
[null,null,null,null,null,null,null,null,null,null,null,null,null,null,null,"Not Supplied"]
[null,null,null,null,null,null,null,null,null,null,null,null,null,null,null,"Not Supplied"]
[null,null,null,null,null,null,null,null,null,null,null,null,null,null,null,"Not Supplied"]
[null,null,null,null,null,null,null,null,null,null,null,null,null,null,null,"Not Supplied"]
[null,null,null,null,null,null,null,null,null,null,null,null,null,null,null,"Not Supplied"]
[null,null,null,null,null,null,null,null,null,null,null,null,null,null,null,"Not Supplied"]
[null,null,null,null,null,null,null,null,null,null,null,null,null,null,null,"Not Supplied"]
[null,null,null,null,null,null,null,null,null,null,null,null,null,null,null,"Not Supplied"]
[null,null,null,null,null,null,null,null,null,null,null,null,null,null,null,"Not Supplied"]
[null,null,null,null,null,null,null,null,null,null,null,null,null,null,null,"Not Supplied"]
[null,null,null,null,null,null,null,null,null,null,null,null,null,null,null,"Not Supplied"]
[null,null,null,null,null,null,null,null,null,null,null,null,null,null,null,"Not Supplied"]
[null,null,null,null,null,null,null,null,null,null,null,null,null,null,null,"Not Supplied"]
[null,null,null,null,null,null,null,null,null,null,null,null,null,null,null,"Not Supplied"]
[null,null,null,null,null,null,null,null,null,null,null,null,null,null,null,"Not Supplied"]
[null,null,null,null,null,null,null,null,null,null,null,null,null,null,null,"Not Supplied"]
[null,null,null,null,null,null,null,null,null,null,null,null,null,null,null,"Not Supplied"]
[null,null,null,null,null,null,null,null,null,null,null,null,null,null,null,"Not Supplied"]
[null,null,null,null,null,null,null,null,null,null,null,null,null,null,null,"Not Supplied"]
[null,null,null,null,null,null,null,null,null,null,null,null,null,null,null,"Not Supplied"]
[null,null,null,null,null,null,null,null,null,null,null,null,null,null,null,"Not Supplied"]
[null,null,null,null,null,null,null,null,null,null,null,null,null,null,null,{"$f":"IsUKPostCode(K1091)","v":"Not Supplied"}]
[null,null,null,null,null,null,null,null,null,null,null,null,null,null,null,"Not Supplied"]
[null,null,null,null,null,null,null,null,null,null,null,null,null,null,null,"Not Supplied"]
[null,null,null,null,null,null,null,null,null,null,null,null,null,null,null,"Not Supplied"]
[null,null,null,null,null,null,null,null,null,null,null,null,null,null,null,"Not Supplied"]
[null,null,null,null,null,null,null,null,null,null,null,null,null,null,null,"Not Supplied"]
[null,null,null,null,null,null,null,null,null,null,null,null,null,null,null,"Not Supplied"]
[null,null,null,null,null,null,null,null,null,null,null,null,null,null,null,"Not Supplied"]
[null,null,null,null,null,null,null,null,null,null,null,null,null,null,null,"Not Supplied"]
[null,null,null,null,null,null,null,null,null,null,null,null,null,null,null,"Not Supplied"]
[null,null,null,null,null,null,null,null,null,null,null,null,null,null,null,"Not Supplied"]
[null,null,null,null,null,null,null,null,null,null,null,null,null,null,null,"Not Supplied"]
[null,null,null,null,null,null,null,null,null,null,null,null,null,null,null,"Not Supplied"]
[null,null,null,null,null,null,null,null,null,null,null,null,null,null,null,"Not Supplied"]
[null,null,null,null,null,null,null,null,null,null,null,null,null,null,null,"Not Supplied"]
[null,null,null,null,null,null,null,null,null,null,null,null,null,null,null,"Not Supplied"]
[null,null,null,null,null,null,null,null,null,null,null,null,null,null,null,"Not Supplied"]
[null,null,null,null,null,null,null,null,null,null,null,null,null,null,null,"Not Supplied"]
[null,null,null,null,null,null,null,null,null,null,null,null,null,null,null,"Not Supplied"]
[null,null,null,null,null,null,null,null,null,null,null,null,null,null,null,"Not Supplied"]
[null,null,null,null,null,null,null,null,null,null,null,null,null,null,null,"Not Supplied"]
[null,null,null,null,null,null,null,null,null,null,null,null,null,null,null,"Not Supplied"]
[null,null,null,null,null,null,null,null,null,null,null,null,null,null,null,"Not Supplied"]
[null,null,null,null,null,null,null,null,null,null,null,null,null,null,null,"Not Supplied"]
[null,null,null,null,null,null,null,null,null,null,null,null,null,null,null,"Not Supplied"]
[null,null,null,null,null,null,null,null,null,null,null,null,null,null,null,"Not Supplied"]
[null,null,null,null,null,null,null,null,null,null,null,null,null,null,null,"Not Supplied"]
[null,null,null,null,null,null,null,null,null,null,null,null,null,null,null,"Not Supplied"]
[null,null,null,null,null,null,null,null,null,null,null,null,null,null,null,"Not Supplied"]
[null,null,null,null,null,null,null,null,null,null,null,null,null,null,null,"Not Supplied"]
[null,null,null,null,null,null,null,null,null,null,null,null,null,null,null,"Not Supplied"]
[null,null,null,null,null,null,null,null,null,null,null,null,null,null,null,"Not Supplied"]
[null,null,null,null,null,null,null,null,null,null,null,null,null,null,null,"Not Supplied"]
[null,null,null,null,null,null,null,null,null,null,null,null,null,null,null,"Not Supplied"]
[null,null,null,null,null,null,null,null,null,null,null,null,null,null,null,"Not Supplied"]
[null,null,null,null,null,null,null,null,null,null,null,null,null,null,null,"Not Supplied"]
[null,null,null,null,null,null,null,null,null,null,null,null,null,null,null,"Not Supplied"]
[null,null,null,null,null,null,null,null,null,null,null,null,null,null,null,"Not Supplied"]
[null,null,null,null,null,null,null,null,null,null,null,null,null,null,null,"Not Supplied"]
[null,null,null,null,null,null,null,null,null,null,null,null,null,null,null,"Not Supplied"]
[null,null,null,null,null,null,null,null,null,null,null,null,null,null,null,"Not Supplied"]
[null,null,null,null,null,null,null,null,null,null,null,null,null,null,null,"Not Supplied"]
[null,null,null,null,null,null,null,null,null,null,null,null,null,null,null,"Not Supplied"]
[null,null,null,null,null,null,null,null,null,null,null,null,null,null,null,"Not Supplied"]
[null,null,null,null,null,null,null,null,null,null,null,null,null,null,null,"Not Supplied"]
[null,null,null,null,null,null,null,null,null,null,null,null,null,null,null,"Not Supplied"]
[null,null,null,null,null,null,null,null,null,null,null,null,null,null,null,"Not Supplied"]
[null,null,null,null,null,null,null,null,null,null,null,null,null,null,null,"Not Supplied"]
[null,null,null,null,null,null,null,null,null,null,null,null,null,null,null,"Not Supplied"]
[null,null,null,null,null,null,null,null,null,null,null,null,null,null,null,"Not Supplied"]
[null,null,null,null,null,null,null,null,null,null,null,null,null,null,null,"Not Supplied"]
[null,null,null,null,null,null,null,null,null,null,null,null,null,null,null,"Not Supplied"]
[null,null,null,null,null,null,null,null,null,null,null,null,null,null,null,"Not Supplied"]
[null,null,null,null,null,null,null,null,null,null,null,null,null,null,null,"Not Supplied"]
[null,null,null,null,null,null,null,null,null,null,null,null,null,null,null,"Not Supplied"]
[null,null,null,null,null,null,null,null,null,null,null,null,null,null,null,"Not Supplied"]
[null,null,null,null,null,null,null,null,null,null,null,null,null,null,null,"Not Supplied"]
[null,null,null,null,null,null,null,null,null,null,null,null,null,null,null,"Not Supplied"]
[null,null,null,null,null,null,null,null,null,null,null,null,null,null,null,"Not Supplied"]
[null,null,null,null,null,null,null,null,null,null,null,null,null,null,null,"Not Supplied"]
[null,null,null,null,null,null,null,null,null,null,null,null,null,null,null,"Not Supplied"]
[null,null,null,null,null,null,null,null,null,null,null,null,null,null,null,"Not Supplied"]
[null,null,null,null,null,null,null,null,null,null,null,null,null,null,null,"Not Supplied"]
[null,null,null,null,null,null,null,null,null,null,null,null,null,null,null,"Not Supplied"]
[null,null,null,null,null,null,null,null,null,null,null,null,null,null,null,{"$f":"IsUKPostCode(K1155)","v":"Not Supplied"}]
[null,null,null,null,null,null,null,null,null,null,null,null,null,null,null,"Not Supplied"]
[null,null,null,null,null,null,null,null,null,null,null,null,null,null,null,"Not Supplied"]
[null,null,null,null,null,null,null,null,null,null,null,null,null,null,null,"Not Supplied"]
[null,null,null,null,null,null,null,null,null,null,null,null,null,null,null,"Not Supplied"]
[null,null,null,null,null,null,null,null,null,null,null,null,null,null,null,"Not Supplied"]
[null,null,null,null,null,null,null,null,null,null,null,null,null,null,null,"Not Supplied"]
[null,null,null,null,null,null,null,null,null,null,null,null,null,null,null,"Not Supplied"]
[null,null,null,null,null,null,null,null,null,null,null,null,null,null,null,"Not Supplied"]
[null,null,null,null,null,null,null,null,null,null,null,null,null,null,null,"Not Supplied"]
[null,null,null,null,null,null,null,null,null,null,null,null,null,null,null,"Not Supplied"]
[null,null,null,null,null,null,null,null,null,null,null,null,null,null,null,"Not Supplied"]
[null,null,null,null,null,null,null,null,null,null,null,null,null,null,null,"Not Supplied"]
[null,null,null,null,null,null,null,null,null,null,null,null,null,null,null,"Not Supplied"]
[null,null,null,null,null,null,null,null,null,null,null,null,null,null,null,"Not Supplied"]
[null,null,null,null,null,null,null,null,null,null,null,null,null,null,null,"Not Supplied"]
[null,null,null,null,null,null,null,null,null,null,null,null,null,null,null,"Not Supplied"]
[null,null,null,null,null,null,null,null,null,null,null,null,null,null,null,"Not Supplied"]
[null,null,null,null,null,null,null,null,null,null,null,null,null,null,null,"Not Supplied"]
[null,null,null,null,null,null,null,null,null,null,null,null,null,null,null,"Not Supplied"]
[null,null,null,null,null,null,null,null,null,null,null,null,null,null,null,"Not Supplied"]
[null,null,null,null,null,null,null,null,null,null,null,null,null,null,null,"Not Supplied"]
[null,null,null,null,null,null,null,null,null,null,null,null,null,null,null,"Not Supplied"]
[null,null,null,null,null,null,null,null,null,null,null,null,null,null,null,"Not Supplied"]
[null,null,null,null,null,null,null,null,null,null,null,null,null,null,null,"Not Supplied"]
[null,null,null,null,null,null,null,null,null,null,null,null,null,null,null,"Not Supplied"]
[null,null,null,null,null,null,null,null,null,null,null,null,null,null,null,"Not Supplied"]
[null,null,null,null,null,null,null,null,null,null,null,null,null,null,null,"Not Supplied"]
[null,null,null,null,null,null,null,null,null,null,null,null,null,null,null,"Not Supplied"]
[null,null,null,null,null,null,null,null,null,null,null,null,null,null,null,"Not Supplied"]
[null,null,null,null,null,null,null,null,null,null,null,null,null,null,null,"Not Supplied"]
[null,null,null,null,null,null,null,null,null,null,null,null,null,null,null,"Not Supplied"]
[null,null,null,null,null,null,null,null,null,null,null,null,null,null,null,"Not Supplied"]
[null,null,null,null,null,null,null,null,null,null,null,null,null,null,null,"Not Supplied"]
[null,null,null,null,null,null,null,null,null,null,null,null,null,null,null,"Not Supplied"]
[null,null,null,null,null,null,null,null,null,null,null,null,null,null,null,"Not Supplied"]
[null,null,null,null,null,null,null,null,null,null,null,null,null,null,null,"Not Supplied"]
[null,null,null,null,null,null,null,null,null,null,null,null,null,null,null,"Not Supplied"]
[null,null,null,null,null,null,null,null,null,null,null,null,null,null,null,"Not Supplied"]
[null,null,null,null,null,null,null,null,null,null,null,null,null,null,null,"Not Supplied"]
[null,null,null,null,null,null,null,null,null,null,null,null,null,null,null,"Not Supplied"]
[null,null,null,null,null,null,null,null,null,null,null,null,null,null,null,"Not Supplied"]
[null,null,null,null,null,null,null,null,null,null,null,null,null,null,null,"Not Supplied"]
[null,null,null,null,null,null,null,null,null,null,null,null,null,null,null,"Not Supplied"]
[null,null,null,null,null,null,null,null,null,null,null,null,null,null,null,"Not Supplied"]
[null,null,null,null,null,null,null,null,null,null,null,null,null,null,null,"Not Supplied"]
[null,null,null,null,null,null,null,null,null,null,null,null,null,null,null,"Not Supplied"]
[null,null,null,null,null,null,null,null,null,null,null,null,null,null,null,"Not Supplied"]
[null,null,null,null,null,null,null,null,null,null,null,null,null,null,null,"Not Supplied"]
[null,null,null,null,null,null,null,null,null,null,null,null,null,null,null,"Not Supplied"]
[null,null,null,null,null,null,null,null,null,null,null,null,null,null,null,"Not Supplied"]
[null,null,null,null,null,null,null,null,null,null,null,null,null,null,null,"Not Supplied"]
[null,null,null,null,null,null,null,null,null,null,null,null,null,null,null,"Not Supplied"]
[null,null,null,null,null,null,null,null,null,null,null,null,null,null,null,"Not Supplied"]
[null,null,null,null,null,null,null,null,null,null,null,null,null,null,null,"Not Supplied"]
[null,null,null,null,null,null,null,null,null,null,null,null,null,null,null,"Not Supplied"]
[null,null,null,null,null,null,null,null,null,null,null,null,null,null,null,"Not Supplied"]
[null,null,null,null,null,null,null,null,null,null,null,null,null,null,null,"Not Supplied"]
[null,null,null,null,null,null,null,null,null,null,null,null,null,null,null,"Not Supplied"]
[null,null,null,null,null,null,null,null,null,null,null,null,null,null,null,"Not Supplied"]
[null,null,null,null,null,null,null,null,null,null,null,null,null,null,null,"Not Supplied"]
[null,null,null,null,null,null,null,null,null,null,null,null,null,null,null,"Not Supplied"]
[null,null,null,null,null,null,null,null,null,null,null,null,null,null,null,"Not Supplied"]
[null,null,null,null,null,null,null,null,null,null,null,null,null,null,null,"Not Supplied"]
[null,null,null,null,null,null,null,null,null,null,null,null,null,null,null,{"$f":"IsUKPostCode(K1219)","v":"Not Supplied"}]
[null,null,null,null,null,null,null,null,null,null,null,null,null,null,null,"Not Supplied"]
[null,null,null,null,null,null,null,null,null,null,null,null,null,null,null,"Not Supplied"]
[null,null,null,null,null,null,null,null,null,null,null,null,null,null,null,"Not Supplied"]

{"sheet":"Validation","index":1,"n_rows":101,"n_cols":3,"rows_kept":101,"cut":false,"hidden":true,"merged":[]}
["Title","Gender","County"]
["Miss.","Male","Aberdeenshire"]
["Mr.","Female","Angus"]
["Ms.",null,"Argyll"]
["Mrs.",null,"Avon"]
["Dr.",null,"Ayrshire"]
[null,null,"Banffshire"]
[null,null,"Bedfordshire"]
[null,null,"Berkshire"]
[null,null,"Berwickshire"]
[null,null,"Buckinghamshire"]
[null,null,"Cambridgeshire"]
[null,null,"Ceredigion"]
[null,null,"Channel Islands"]
[null,null,"Cheshire"]
[null,null,"Clackmannanshire"]
[null,null,"Cleveland"]
[null,null,"Clwyd"]
[null,null,"Cornwall"]
[null,null,"County Antrim"]
[null,null,"County Armagh"]
[null,null,"County Down"]
[null,null,"County Durham"]
[null,null,"County Fermanagh"]
[null,null,"County Londonderry"]
[null,null,"County Tyrone"]
[null,null,"Cumbria"]
[null,null,"Derbyshire"]
[null,null,"Devon"]
[null,null,"Dorset"]
[null,null,"Dumfriesshire"]
[null,null,"Dunbartonshire"]
[null,null,"Durham and Cleveland"]
[null,null,"Dyfed"]
[null,null,"East Lothian"]
[null,null,"East Sussex"]
[null,null,"Essex"]
[null,null,"Fife"]
[null,null,"Gloucestershire"]
[null,null,"Guernsey"]
[null,null,"Gwent"]
[null,null,"Gwynedd"]
[null,null,"Hampshire"]
[null,null,"Herefordshire"]
[null,null,"Hertfordshire"]
[null,null,"Inverness-Shire"]
[null,null,"Isle of Lewis"]
[null,null,"Isle of Man"]
[null,null,"Isle of Wight"]
[null,null,"Jersey"]
[null,null,"Kent"]
[null,null,"Kincardineshire"]
[null,null,"Kirkcudbrightshire"]
[null,null,"Lanarkshire"]
[null,null,"Lancashire"]
[null,null,"Leicestershire"]
[null,null,"Lincolnshire"]
[null,null,"Merseyside"]
[null,null,"Mid Glamorgan"]
[null,null,"Middlesex"]
[null,null,"Midlothian"]
[null,null,"Morayshire"]
[null,null,"Neath Port Talbot"]
[null,null,"Norfolk"]
[null,null,"North Humberside"]
[null,null,"North Somerset"]
[null,null,"North Yorkshire"]
[null,null,"Northamptonshire"]
[null,null,"Northern Ireland"]
[null,null,"Northumberland"]
[null,null,"Nottinghamshire"]
[null,null,"Oxfordshire"]
[null,null,"Peeblesshire"]
[null,null,"Perthshire"]
[null,null,"Powys"]
[null,null,"Renfrewshire"]
[null,null,"Ross-Shire"]
[null,null,"Roxburghshire"]
[null,null,"Selkirkshire"]
[null,null,"Shropshire"]
[null,null,"Somerset"]
[null,null,"South Glamorgan"]
[null,null,"South Humberside"]
[null,null,"South Yorkshire"]
[null,null,"Staffordshire"]
[null,null,"Stirlingshire"]
[null,null,"Suffolk"]
[null,null,"Surrey"]
[null,null,"Sussex"]
[null,null,"Sutherland"]
[null,null,"Tyne and Wear"]
[null,null,"Warwickshire"]
[null,null,"West Glamorgan"]
[null,null,"West Lothian"]
[null,null,"West Midlands"]
[null,null,"West Sussex"]
[null,null,"West Yorkshire"]
[null,null,"Wigtownshire"]
[null,null,"Wiltshire"]
[null,null,"Worcestershire"]
[null,null,"Yorkshire"]